Workbook

Sheet InitialSolution_Validation
A1: AQUATIC CHEMISTRY for Engineers
A3: Module | B3: Single solution validation for aerobic water | J3: v20260519
B4: Validation of water analyses and comparing parameter values to Dutch drinking water requirements | W4: https://dsjn8hok14rey.cloudfront.net/-/media/project/vitens/vitensnl/service/waterkwaliteitsoverzicht/wz_mpb-soestduinen.pdf
A6: Phreeqc | B6: Input for all standard Vitens parameters (+TDS +Br +Li +Sr) for aerobic water (no input of C(-4), S(-2), N(0) and pe)
A8: Sample description | B8: Vitens Pb. Soestduinen, produced drinking water (2025 average values) | H8: Vitens | I8: Assumption:
H9: DL | I9: mg/L =mg/kgs =mg/kgw | L9: Drinking water: | N9: NL | O9: = Drinking water decree + KIWA mededeling 100 (update 2013)
A10: General | B10: Temperature | C10: t | D10: °C | G10: 10.9 | L10: < 25 | M10: °C | N10: NL
B11: Oxygen | C11: O2 | D11: mg/L | G11: 11.4 | I11: =G11/(2*15.999) -> 0.356272267 | J11: mmol/kgw | L11: > 2 | M11: mg/L | N11: NL
B12: pH | C12: pH | D12: - | G12: 7.99 | L12: > 7.4 < 9.5 | N12: NL | O12: > 7.0 < 9.5 (Drinking water decree)
B13: Temperature pH-measurement | C13: t_pH | D13: °C | G13: 10.9 | O13: use field-temperature whenever unknown
B14: Turbidity | C14: Turb | D14: FTU | G14: < 0,1 | H14: 0.1 | L14: < 1 | M14: FTU | N14: NL
B15: Conductivity (EC 20 °C) | C15: EC20 | D15: mS/m | G15: 26.8 | L15: < 125 (20 °C) | M15: mS/m | N15: NL | O15: ISO 7888 / EN 27888 requires 25 °C
B16: Conductivity (EC 25 °C) | C16: EC25 | D16: mS/m | G16: =1.116*G15 -> 29.9088 | I16: =G16*10 -> 299.088 | J16: µS/cm | L16: < 140 (25 °C) | M16: mS/m | N16: NL | O16: temp-conversion acc. ISO 7888 / EN 27888
B17: Total dissolved solids (TDS residue) | C17: TDS | D17: mg/L | H17: n.a. | L17: - | N17: NL
B18: Color (455 nm) | C18: Col | D18: mg/L Pt-Co | G18: < 3 | H18: 3 | L18: < 20 | M18: mg/L Pt-Co | N18: NL
B19: UV absorbance | C19: UVab | D19: /m | G19: 0.5 | L19: - | N19: NL | T19: Cations/Anions
B20: Total organic carbon (as DOC) | C20: DOC | D20: mg/L C | G20: < 0,5 | H20: 0.5 | I20: =IFERROR(G20/12.011,"<") -> < | J20: mmol/kgw | L20: - | N20: NL | T20: meq/L
B21: Silicate | C21: Si | D21: mg/L | G21: 5.57 | I21: =G21/28.085 -> 0.1983265088 | J21: mmol/kgw | L21: - | N21: NL
A22: Cations | B22: Calcium | C22: Ca | D22: mg/L | G22: 41.8 | I22: =G22/40.078 -> 1.042966216 | J22: mmol/kgw | L22: 1.0 < TH < 1.8 | M22: mmol/L | N22: NL | O22: TH > 1.0 (Drinking water decree, if softened) | T22: =IFERROR(I22*2,"-") -> 2.085932432
B23: Magnesium | C23: Mg | D23: mg/L | G23: 3.98 | I23: =G23/24.305 -> 0.1637523143 | J23: mmol/kgw | L23: 1.0 < TH < 1.8 | M23: mmol/L | N23: NL | O23: TH > 1.0 (Drinking water decree, if softened) | T23: =IFERROR(I23*2,"-") -> 0.3275046287
B24: Sodium | C24: Na | D24: mg/L | G24: 11.4 | I24: =G24/22.99 -> 0.4958677686 | J24: mmol/kgw | L24: < 150 | M24: mg/L | N24: NL | T24: =IFERROR(I24*1,"-") -> 0.4958677686
B25: Potassium | C25: K | D25: mg/L | G25: 1.06 | I25: =G25/39.098 -> 0.02711136119 | J25: mmol/kgw | L25: - | N25: NL | T25: =IFERROR(I25*1,"-") -> 0.02711136119
B26: Iron | C26: Fe | D26: mg/L | G26: < 0,01 | H26: 0.01 | I26: =IFERROR(G26/55.845,"<") -> < | J26: mmol/kgw | L26: < 0.20 | M26: mg/L | N26: NL | T26: =IFERROR(I26*2,"-") -> -
B27: Manganese | C27: Mn | D27: mg/L | G27: 0.014 | H27: 0.005 | I27: =IFERROR(G27/54.938,"<") -> 0.0002548327205 | J27: mmol/kgw | L27: < 0.05 | M27: mg/L | N27: NL | T27: =IFERROR(I27*2,"-") -> 0.000509665441
B28: Ammonium | C28: NH4 | D28: mg/L | G28: < 0,03 | H28: 0.03 | I28: =IFERROR(G28/(14.007+4*1.008),"<") -> < | J28: mmol/kgw | L28: < 0.20 | M28: mg/L | N28: NL | T28: =IFERROR(I28*1,"-") -> -
A29: Anions | B29: Hydrogen carbonate (as Alkalinity) | C29: HCO3 | D29: mg/L | G29: 109 | I29: =G29/(1.008+12.011+3*15.999) -> 1.786416678 | J29: mmol/kgw | L29: > 60 | M29: mg/L | N29: NL | T29: =IFERROR(I29*1,"-") -> 1.786416678
B30: Chloride | C30: Cl | D30: mg/L | G30: 19 | I30: =G30/35.45 -> 0.5359661495 | J30: mmol/kgw | L30: < 150 | M30: mg/L | N30: NL | T30: =IFERROR(I30*1,"-") -> 0.5359661495
B31: Nitrate | C31: NO3 | D31: mg/L | G31: 5.19 | H31: 1 | I31: =IFERROR(G31/(14.007+3*15.999),"<") -> 0.08370427714 | J31: mmol/kgw | L31: < 50 | M31: mg/L | N31: NL | T31: 0.08370427714
B32: Sulfate | C32: SO4 | D32: mg/L | G32: 22 | H32: 2 | I32: =IFERROR(G32/(32.06+4*15.999),"<") -> 0.229033064 | J32: mmol/kgw | L32: < 150 | M32: mg/L | N32: NL | R32: meq/L | T32: =IFERROR(I32*2,"-") -> 0.4580661281
B33: Fluoride | C33: F | D33: mg/L | G33: 0.08 | H33: 0.05 | I33: =IFERROR(G33/18.998,"<") -> 0.004210969576 | J33: mmol/kgw | L33: < 1 | M33: mg/L | N33: NL | Q33: Cations | R33: =SUM(T22:T28) -> 2.936925856 | T33: 0.004210969576
B34: Bromide | C34: Br | D34: mg/L | H34: n.a. | I34: =G34/79.904 -> 0 | J34: mmol/kgw | L34: - | N34: NL | Q34: Anions | R34: =SUM(T29:T36) -> 2.871681039 | T34: 0
B35: Phosphate | C35: PO4 | D35: mg/L | G35: 0.21 | H35: 0.03 | I35: =IFERROR(G35/(30.974+4*15.999),"<") -> 0.002211224597 | J35: mmol/kgw | L35: - | N35: NL | Q35: Cat-An | R35: =R33-R34 -> 0.06524481686 | T35: =IFERROR(I35*1.5,"-") -> 0.003316836896
B36: Nitrite | C36: NO2 | D36: mg/L | G36: < 0,01 | H36: 0.01 | I36: =IFERROR(G36/(14.007+2*15.999),"<") -> < | J36: mmol/kgw | L36: < 0.1 | M36: mg/L | N36: NL | Q36: % | R36: =R35/(R33+R34) -> 0.01123243801 | T36: -
A37: Micro parameters | B37: Aluminium | C37: Al | D37: μg/L | G37: 3.8 | H37: 2 | I37: =IFERROR(G37/26.982/1000,"<") -> 0.0001408346305 | J37: mmol/kgw | L37: < 200 | M37: μg/L | N37: NL
B38: Antimony | C38: Sb | D38: μg/L | G38: < 1 | H38: 1 | I38: =IFERROR(G38/121.76/1000,"<") -> < | J38: mmol/kgw | L38: < 5 | M38: μg/L | N38: NL
B39: Arsenic | C39: As | D39: μg/L | G39: 1.15 | H39: 0.5 | I39: =IFERROR(G39/74.922/1000,"<") -> 1.53492966e-05 | J39: mmol/kgw | L39: < 10 | M39: μg/L | N39: NL
B40: Barium | C40: Ba | D40: μg/L | G40: 11.7 | H40: 1 | I40: =IFERROR(G40/137.33/1000,"<") -> 8.519624263e-05 | J40: mmol/kgw | L40: - | N40: NL
B41: Boron | C41: B | D41: μg/L | G41: 11.8 | H41: 10 | I41: =IFERROR(G41/10.81/1000,"<") -> 0.001091581869 | J41: mmol/kgw | L41: < 500 | M41: μg/L | N41: NL
B42: Cadmium | C42: Cd | D42: μg/L | G42: < 0,10 | H42: 0.1 | I42: =IFERROR(G42/112.41/1000,"<") -> < | J42: mmol/kgw | L42: < 5 | M42: μg/L | N42: NL
B43: Chromium | C43: Cr | D43: μg/L | G43: 0.669 | H43: 0.5 | I43: =IFERROR(G43/51.996/1000,"<") -> 1.286637434e-05 | J43: mmol/kgw | L43: < 50 | M43: μg/L | N43: NL
B44: Copper | C44: Cu | D44: μg/L | G44: < 1 | H44: 0.5 | I44: =IFERROR(G44/63.546/1000,"<") -> < | J44: mmol/kgw | L44: < 2000 | M44: μg/L | N44: NL
B45: Cyanide | C45: CN | D45: μg/L | G45: < 2 | H45: 2 | I45: =IFERROR(G45/(12.011+14.007)/1000,"<") -> < | J45: mmol/kgw | L45: < 50 | M45: μg/L | N45: NL
B46: Lead | C46: Pb | D46: μg/L | G46: < 0,5 | H46: 0.5 | I46: =IFERROR(G46/207.2/1000,"<") -> < | J46: mmol/kgw | L46: < 10 | M46: μg/L | N46: NL
B47: Lithium | C47: Li | D47: μg/L | H47: n.a. | I47: =G47/6.94/1000 -> 0 | J47: mmol/kgw | L47: - | N47: NL
B48: Mercury | C48: Hg | D48: μg/L | G48: < 0,02 | H48: 0.02 | I48: =IFERROR(G48/200.59/1000,"<") -> < | J48: mmol/kgw | L48: < 1 | M48: μg/L | N48: NL
B49: Nickel | C49: Ni | D49: μg/L | G49: < 1,0 | H49: 1 | I49: =IFERROR(G49/58.693/1000,"<") -> < | J49: mmol/kgw | L49: < 20 | M49: μg/L | N49: NL
B50: Selenium | C50: Se | D50: μg/L | G50: < 0,5 | H50: 0.5 | I50: =IFERROR(G50/78.971/1000,"<") -> < | J50: mmol/kgw | L50: < 10 | M50: μg/L | N50: NL
B51: Strontium | C51: Sr | D51: μg/L | H51: n.a. | I51: =G51/87.62/1000 -> 0 | J51: mmol/kgw | L51: - | N51: NL
B52: Zinc | C52: Zn | D52: μg/L | G52: < 2,0 | H52: 2 | I52: =IFERROR(G52/65.38/1000,"<") -> < | J52: mmol/kgw | L52: < 3000 | M52: μg/L | N52: NL
G53: < = less than detection limit (DL)
E57: Output!
E58: col | F58: row
A59: Overall parameters | B59: Cations | C59: Cat | D59: meq/kgw | E59: =SUBSTITUTE(ADDRESS(1, MATCH("Cation",INDIRECT(E$57&"$A$1:$DZ$1"),0), 4,1,), "1", "") -> BM | F59: 4 | G59: =INDIRECT($E$57&$E59&F59)*1000 -> 2.892054368
B60: Anions | C60: An | D60: meq/kgw | E60: =SUBSTITUTE(ADDRESS(1, MATCH("Anion",INDIRECT(E$57&"$A$1:$DZ$1"),0), 4,1,), "1", "") -> BN | F60: 4 | G60: =INDIRECT($E$57&$E60&$F60)*1000 -> 2.825108555
B61: Conductivity (EC at t °C, calculated) | C61: ECt | D61: mS/m | E61: =SUBSTITUTE(ADDRESS(1, MATCH("EC(mS/m)",INDIRECT(E$57&"$A$1:$DZ$1"),0), 4,1,), "1", "") -> BP | F61: 4 | G61: =INDIRECT($E$57&$E61&$F61) -> 21.8801068
B62: Conductivity (EC at 25 °C, calculated) | C62: EC25 | D62: mS/m | E62: =SUBSTITUTE(ADDRESS(1, MATCH("EC(mS/m)",INDIRECT(E$57&"$A$1:$DZ$1"),0), 4,1,), "1", "") -> BP | F62: 5 | G62: =INDIRECT($E$57&$E62&$F62) -> 30.98822342 | I62: =INDIRECT("Output!R"&F61&"C"&MATCH("EC25(mS/m)",Output!$A$1:$CD$1,0),FALSE) -> 30.51352441 | J62: (ISO 7888) | L62: < 140 (25 °C) | M62: mS/m | N62: NL
B63: Total dissolved solids (TDS, calculated) | C63: TDS | D63: mg/L | E63: calc | F63: 4 | G63: =G21*(28.085+15.999*2)/28.085+SUM(G22:G28)+SUM(G29:G36)+SUM(G37:G52)/1000 -> 225.6791706 | I63: =INDIRECT("Output!R"&F63&"C"&MATCH("TDS(mg/L)",Output!$A$1:$CD$1,0),FALSE) -> 263.5486534 | J63: (from density)
B64: Ionic strength | C64: IS | D64: mmol/kgw | E64: =SUBSTITUTE(ADDRESS(1, MATCH("Ion_Str",INDIRECT(E$57&"$A$1:$DZ$1"),0), 4,1,), "1", "") -> BO | F64: 4 | G64: =INDIRECT($E$57&$E64&$F64)*1000 -> 4.264575425
B65: Total hardness | C65: TH | D65: mmol/kgw | E65: calc | F65: - | G65: =G119+G124 -> 1.207272216 | I65: =G65*5.6 -> 6.76072441 | J65: °D | L65: >1.0 < 1.8 | M65: mmol/L | N65: NL | O65: TH > 1.0 (Drinking water decree)
B66: Vapor pressure water | C66: pH2O | D66: atm | E66: =SUBSTITUTE(ADDRESS(1, MATCH("si_H2O(g)",INDIRECT(E$57&"$A$1:$DZ$1"),0), 4,1,), "1", "") -> BC | F66: 4 | G66: =10^INDIRECT($E$57&$E66&$F66) -> 0.01303787192
B67: Density | C67: rho | D67: kg/L | E67: =SUBSTITUTE(ADDRESS(1, MATCH("rho(kg/L)",INDIRECT(E$57&"$A$1:$DZ$1"),0), 4,1,), "1", "") -> BF | F67: 4 | G67: =INDIRECT($E$57&$E67&$F67) -> 0.9998049231
B68: Molality (mol/kgw) to Molarity (mol/L) factor | D68: kgw/L | E68: =SUBSTITUTE(ADDRESS(1, MATCH("kgw/L",INDIRECT(E$57&"$A$1:$DZ$1"),0), 4,1,), "1", "") -> BI | F68: 4 | G68: =INDIRECT($E$57&$E68&$F68) -> 0.9995413744 | I68: si_O2(g)
A69: Redox conditions | B69: Oxygen | D69: mmol/kgw | E69: =SUBSTITUTE(ADDRESS(1, MATCH("m_O2(mol/kgw)",INDIRECT(E$57&"$A$1:$DZ$1"),0), 4,1,), "1", "") -> Z | F69: 4 | G69: =INDIRECT($E$57&$E69&$F69)*1000 -> 0.3564357376 | I69: =10^INDIRECT("Output!R"&F69&"C"&MATCH("si_O2(g)",Output!$A$1:$CD$1,0),FALSE) -> 0.2122815163 | J69: atm
B70: pe (electron activity) | C70: pe | D70: - | E70: =SUBSTITUTE(ADDRESS(1, MATCH("pe",INDIRECT(E$57&"$A$1:$DZ$1"),0), 4,1,), "1", "") -> F | F70: 4 | G70: =INDIRECT($E$57&$E70&$F70) -> 13.92808324
B71: Redox potential | C71: Eh | D71: mV | E71: calc | F71: - | G71: =IF(G69<0.0001,"-",G70*2.3*8.314*(273.15+$G10)/96485*1000) -> 784.0869077
A72: Correctness checks | B72: pH difference (electron balancing phreeqc) | D72: - | E72: =SUBSTITUTE(ADDRESS(1, MATCH("pH",INDIRECT(E$57&"$A$1:$DZ$1"),0), 4,1,), "1", "") -> E | F72: 3-2 | G72: =INDIRECT($E$57&$E72&"3")-INDIRECT($E$57&$E72&"2") -> 0 | H72: =IF(ABS(G72)<0.001," ok"," not ok") -> ok | L72: < 0.001 | N72: pr.
B73: Molality to Molarity difference | D73: % difference | E73: calc | F73: - | G73: =1-G68 -> 0.0004586255841 | H73: =IF(ABS(G73)<0.001," ok"," not ok") -> ok | L73: < 0.1% | N73: pr.
B74: Charge difference | D74: meq/L | E74: calc | F74: - | G74: =(G59-G60)*G68 -> 0.06691510986 | H74: =IF(G60<3,IF(ABS(G74)<0.2," ok"," not ok")," -") -> ok | L74: < 0.2 meq/L (an < 3) | N74: SM 1030E | P74: SM 1030E : Checking correctness of Analyses
B75: Relative error: Cat-|An|) / (Cat+|An|) | D75: % | E75: =SUBSTITUTE(ADDRESS(1, MATCH("Charge_Err%",INDIRECT(E$57&"$A$1:$DZ$1"),0), 4,1,), "1", "") -> BK | F75: 4 | G75: =INDIRECT($E$57&$E75&$F75)/100 -> 0.01170962133 | H75: =IF(G62>=3,IF(ABS(G75)<0.02," ok"," not ok"),"-") -> ok | L75: < 2% (3 < an < 10) | N75: SM 1030E | P75: Ion Bal | Q75: an < 3 meq/L | S75: diff | T75: < 0.2 meq/L
B76: EC ratio, calculated/measured | D76: - | E76: calc | F76: - | G76: =IF(G16>0,G62/G16,"-") -> 1.036090496 | H76: =IF(G76="-"," -",IF(AND(G76>0.9,G76<1.1)," ok"," not ok")) -> ok | L76: >0.9 <1.1 | N76: SM 1030E | Q76: 3 < an < 10 meq/L | S76: error | T76: < 2%
B77: TDS ratio, measured/calculated | D77: - | E77: calc | F77: - | G77: =IF(G17>0,G17/G63,"-") -> - | H77: =IF(G77="-"," -",IF(AND(G77>1,G77<1.2),"ok","not ok")) -> - | L77: >1.0 <1.2 | N77: SM 1030E | Q77: 10 < an < 800 meq/L | S77: error | T77: < 5%
B78: Cations to EC ratio | D78: meq/L / µS/cm | E78: calc | F78: - | G78: =10*G59*G68/G62 -> 0.9328472817 | H78: =IF(AND(G78>0.9,G78<1.1)," ok"," not ok") -> ok | L78: >0.9 <1.1 | N78: SM 1030E | P78: TDS | Q78: m-c ratio | R78: 1.0 - 1.2 | T78: meas/cal
B79: Anions to EC ratio | D79: meq/L / µS/cm | E79: calc | F79: - | G79: =10*G60*G68/G62 -> 0.9112535591 | H79: =IF(AND(G79>0.9,G79<1.1)," ok"," not ok") -> ok | L79: >0.9 <1.1 | N79: SM 1030E | P79: EC | Q79: c-m ratio | R79: 0.9 - 1.1 | T79: cal/meas
B80: TDS to EC ratio, measured | D80: mg/L / µS/cm | E80: calc | F80: - | G80: =IF(G16*G17>0,G17/G16/10,"-") -> - | H80: =IF(G80="-"," -",IF(AND(G80>0.55,G80<0.7)," ok"," not ok")) -> - | L80: >0.55 <0.7 | N80: SM 1030E | P80: charge / EC meas | R80: 0.9 - 1.1 | T80: an / EC + cat / EC
B81: TDS to EC ratio, calculated | D81: mg/L / µS/cm | E81: calc | F81: - | G81: =IF(G62*G63>0,G63/G62/10,"-") -> 0.7282739885 | H81: =IF(G81="-"," -",IF(AND(G81>0.55,G81<0.7)," ok"," not ok")) -> not ok | L81: >0.55 <0.7 | N81: SM 1030E | P81: TDS / EC | R81: 0.55 - 0.7 | T81: cal/cal + meas/meas
B82: Oxygen saturation (to air at sea level) | D82: atm/atm | E82: calc | F82: - | G82: =I69/0.208 -> 1.020584213 | H82: =IF(G82<1.1," ok"," not ok") -> ok | L82: < 1.1 | N82: pr.
A83: Carbonic acid dissociation | B83: pH (Hydrogen activity) | C83: pH | D83: - | E83: =SUBSTITUTE(ADDRESS(1, MATCH("pH",INDIRECT(E$57&"$A$1:$DZ$1"),0), 4,1,), "1", "") -> E | F83: 4 | G83: =INDIRECT($E$57&$E83&$F83) -> 7.99 | L83: >7.0 <9.5 | N83: NL
B84: Alkalinity | C84: m | D84: meq/kgw | E84: =SUBSTITUTE(ADDRESS(1, MATCH("Alk(eq/kgw)",INDIRECT(E$57&"$A$1:$DZ$1"),0), 4,1,), "1", "") -> H | F84: 4 | G84: =INDIRECT($E$57&$E84&$F84)*1000 -> 1.78723635 | L84: > 2.0 | M84: meq/L | N84: NL | O84: > 1.0 (Drinking water decree)
B85: p Alkalinity | C85: p | D85: meq/kgw | E85: calc | F85: - | G85: =G84-G86 -> -0.02965944744
B86: Total Inorganic Carbon (TIC) | C86: TIC | D86: mmol/kgw | E86: =SUBSTITUTE(ADDRESS(1, MATCH("C(mol/kgw)",INDIRECT(E$57&"$A$1:$DZ$1"),0), 4,1,), "1", "") -> I | F86: 4 | G86: =INDIRECT($E$57&$E86&$F86)*1000 -> 1.816895797 | I86: =G86*12.011*G68 -> 21.81272696 | J86: mg/L C
B87: CO2 total | C87: CO2-T | D87: mmol/kgw | E87: =SUBSTITUTE(ADDRESS(1, MATCH("CO2T",INDIRECT(E$57&"$A$1:$DZ$1"),0), 4,1,), "1", "") -> BW | F87: 4 | G87: =INDIRECT($E$57&$E87&$F87)*1000 -> 0.04776703678 | I87: =10^INDIRECT(SUBSTITUTE(ADDRESS(1,MATCH("si_CO2(g)",Output!$A$1:$CS$1,0),4,TRUE,"Output"),"1","3")) -> 0.0009166156417 | J87: atm
B88: HCO3 - total | C88: HCO3-T | D88: mmol/kgw | E88: =SUBSTITUTE(ADDRESS(1, MATCH("HCO3T",INDIRECT(E$57&"$A$1:$DZ$1"),0), 4,1,), "1", "") -> BX | F88: 4 | G88: =INDIRECT($E$57&$E88&$F88)*1000 -> 1.755826986 | I88: =G88*(1.008+12.011+3*15.999)*G68 -> 107.0844052 | J88: mg/L | L88: > 2.0 | M88: mmol/L | N88: NL | O88: > 1.0 (Drinking water decree)
B89: CO3 2- total | C89: CO3-T | D89: mmol/kgw | E89: =SUBSTITUTE(ADDRESS(1, MATCH("CO3T",INDIRECT(E$57&"$A$1:$DZ$1"),0), 4,1,), "1", "") -> BY | F89: 4 | G89: =INDIRECT($E$57&$E89&$F89)*1000 -> 0.01330177468 | I89: =G89*(12.011+3*15.999)*G68 -> 0.7978468143 | J89: mg/L
B90: Buffer capacity | C90: BI | D90: mmol/kgw /pH | E90: =SUBSTITUTE(ADDRESS(1, MATCH("pH",INDIRECT(E$57&"$A$1:$DZ$1"),0), 4,1,), "1", "") -> E | F90: 7-4 | G90: =0.01/(INDIRECT($E$57&$E72&"7")-INDIRECT($E$57&$E72&"4")) -> -0.1503032786
B91: dpH by 0.1 mmol HCl / kgw | C91: pH | D91: - | E91: E | F91: 8-4 | G91: =INDIRECT($E$57&$E72&"8")-INDIRECT($E$57&$E72&"4") -> -0.4773319844
B92: H+ for dpH = -0.30 | C92: H+ | D92: mmol/kgw | E92: =SUBSTITUTE(ADDRESS(1, MATCH("Cl(mol/kgw)",INDIRECT(E$57&"$A$1:$DZ$1"),0), 4,1,), "1", "") -> Y | F92: 9-4 | G92: =(INDIRECT($E$57&$E92&"9")-INDIRECT($E$57&$E92&"4"))*1000 -> 0.05353212801
A93: Calcite equilibrium | B93: SI (calcite) | C93: SI-c | D93: - | E93: =SUBSTITUTE(ADDRESS(1, MATCH("si_Calcite",INDIRECT(E$57&"$A$1:$DZ$1"),0), 4,1,), "1", "") -> AP | F93: 4 | G93: =IF(INDIRECT($E$57&$E93&$F93)>-100,INDIRECT($E$57&$E93&$F93),"-") -> 0.03597504012 | L93: > -0.2 | N93: NL
B94: Equilibrium-pH (pHs or pH-Langelier) | C94: pH-L | D94: - | E94: calc | F94: - | G94: =IF(ISNUMBER(G93),G83-G93,"-") -> 7.95402496
B95: Calcite Precipitation Potential | C95: CPP | D95: mmol/kgw | E95: =SUBSTITUTE(ADDRESS(1, MATCH("CCPP",INDIRECT(E$57&"$A$1:$DZ$1"),0), 4,1,), "1", "") -> BZ | F95: 6 | G95: =INDIRECT($E$57&$E95&$F95)*1000 -> 0.004728969025 | I95: =IF(G95>0,G95*(40.078+12.011+3*15.999)*G68,-G95*(12.011+2*15.999)*G68) -> 0.4730865247 | J95: =IF(G95>0,"mg/L CaCO3","mg/L CO2") -> mg/L CaCO3 | L95: > -0.05 | M95: mmol/L | N95: DE
B96: Calcite Precipitation Potential at 60 °C | C96: CPP-60 | D96: mmol/kgw | E96: =SUBSTITUTE(ADDRESS(1, MATCH("CCPP",INDIRECT(E$57&"$A$1:$DZ$1"),0), 4,1,), "1", "") -> BZ | F96: 10 | G96: =INDIRECT($E$57&$E96&$F96)*1000 -> 0.07603710439 | I96: =IF(G96>0,G96*(40.078+12.011+3*15.999)*G68,-G96*(12.011+2*15.999)*G68) -> 7.606759375 | J96: =IF(G96>0,"mg/L CaCO3","mg/L CO2") -> mg/L CaCO3
B97: Calcite Precipitation Potential at 90 °C | C97: CPP-90 | D97: mmol/kgw | E97: BZ | F97: 11 | G97: =INDIRECT($E$57&$E97&$F97)*1000 -> 0.1793670163 | I97: =IF(G97>0,G97*(40.078+12.011+3*15.999)*G68,-G97*(12.011+2*15.999)*G68) -> 17.94389389 | J97: =IF(G97>0,"mg/L CaCO3","mg/L CO2") -> mg/L CaCO3 | L97: < 0.6 | M97: mmol/L | N97: NL
B98: Calcite Precipitation Potential at 100 °C | C98: CPP-100 | D98: mmol/kgw | E98: BZ | F98: 12 | G98: =INDIRECT($E$57&$E98&$F98)*1000 -> 0.2255338611 | I98: =IF(G98>0,G98*(40.078+12.011+3*15.999)*G68,-G98*(12.011+2*15.999)*G68) -> 22.56242957 | J98: =IF(G98>0,"mg/L CaCO3","mg/L CO2") -> mg/L CaCO3 | L98: < 0.4 experim. | M98: mmol/L | N98: NL
A99: Other scaling solids | B99: Aragonite | C99: SI | D99: CaCO3 | E99: =SUBSTITUTE(ADDRESS(1, MATCH("si_Aragonite",INDIRECT(E$57&"$A$1:$DZ$1"),0), 4,1,), "1", "") -> AQ | F99: 4 | G99: =IF(INDIRECT($E$57&$E99&$F99)>-100,INDIRECT($E$57&$E99&$F99),"-") -> -0.1184458717 | L99: < 0.3 | N99: pr.
B100: Gypsum | C100: SI | D100: CaSO4.2H2O | E100: =SUBSTITUTE(ADDRESS(1, MATCH("si_Gypsum",INDIRECT(E$57&"$A$1:$DZ$1"),0), 4,1,), "1", "") -> AR | F100: 4 | G100: =IF(INDIRECT($E$57&$E100&$F100)>-100,INDIRECT($E$57&$E100&$F100),"-") -> -2.380532332 | L100: < 0.3 | N100: pr.
B101: Anhydrite | C101: SI | D101: CaSO4 | E101: =SUBSTITUTE(ADDRESS(1, MATCH("si_Anhydrite",INDIRECT(E$57&"$A$1:$DZ$1"),0), 4,1,), "1", "") -> AS | F101: 4 | G101: =IF(INDIRECT($E$57&$E101&$F101)>-100,INDIRECT($E$57&$E101&$F101),"-") -> -2.797198216 | L101: < 0.3 | N101: pr.
B102: Dolomite | C102: SI | D102: CaMg(CO3)2 | E102: =SUBSTITUTE(ADDRESS(1, MATCH("si_Dolomite",INDIRECT(E$57&"$A$1:$DZ$1"),0), 4,1,), "1", "") -> AT | F102: 4 | G102: =IF(INDIRECT($E$57&$E102&$F102)>-100,INDIRECT($E$57&$E102&$F102),"-") -> -0.6791948396 | L102: < 0.3 | N102: pr.
B103: Hydroxyapatite | C103: SI | D103: Ca5(PO4)3OH | E103: =SUBSTITUTE(ADDRESS(1, MATCH("si_Hydroxyapatite",INDIRECT(E$57&"$A$1:$DZ$1"),0), 4,1,), "1", "") -> AU | F103: 4 | G103: =IF(INDIRECT($E$57&$E103&$F103)>-100,INDIRECT($E$57&$E103&$F103),"-") -> 0.6849279096 | L103: < 0.3 | N103: pr.
A104: Corrosion | B104: Pb solvency potential | C104: Pb | D104: μg Pb / L | E104: calc | F104: - | G104: =-141*G83+12*G10+1135 -> 139.21 | L104: < 40 | N104: NL | P104: PbMAX (μg/l) = -141 pH + 12 T (°C) + 1135 | U104: <200 if Pb<50 μg/L | W104: vdHoven 1986
B105: Cu solvency potential | C105: Cu | D105: μg Cu / L | E105: calc | F105: - | G105: =3.3*10^(10-G12)*G88*0.949^G10 -> 335.1177063 | L105: < 2000 | N105: NL | P105: CuMAX (μg/L) = 3.3 * 10^(10-pH) * [HCO3-] (mmol/kgw) * 0.949^T (°C) | W105: deMoel 2012
B106: Corrosion index S1 (galvanized, pitting) | D106: - | E106: calc | F106: - | G106: =IF(G88=0,"-",(I30+I31+2*I32)/G88) -> 0.6138056673 | I106: =IF(G88=0,"-",(I30+2*I32)/G88) -> 0.5661333865 | J106: (old DIN) | L106: < 0.5 | N106: CEN | P106: S1 = (Cl+NO3+2SO4)/HCO3 | W106: EN 12502-3 (S1)
B107: Corrosion index S2 (galvanized, selective) | D107: - | E107: calc | F107: - | G107: =IF(I31<0.3,"-",(I30+2*I32)/I31) -> - | L107: <1 or >3 or NO3<0.3 | N107: CEN | P107: S2 =(Cl+2SO4)/NO3 | W107: EN 12502-3 (S2)
B108: Corrosion index S (copper, pitting) | D108: - | E108: calc | F108: - | G108: =IF(I32=0,"-",G88/I32) -> 7.666259862 | L108: > 1.5 | N108: CEN | P108: S = HCO3/SO4 | W108: EN 12502-2 (S warm water)
A109: Elements / Species | B109: C (in TIC) | D109: mmol/kgw | E109: =SUBSTITUTE(ADDRESS(1, MATCH("C(mol/kgw)",INDIRECT(E$57&"$A$1:$DZ$1"),0), 4,1,), "1", "") -> I | F109: 4 | G109: =INDIRECT($E$57&$E109&$F109)*1000 -> 1.816895797 | J109: TIC - species
B110: CO2 total | E110: =SUBSTITUTE(ADDRESS(1, MATCH("CO2T",INDIRECT(E$57&"$A$1:$DZ$1"),0), 4,1,), "1", "") -> BW | F110: 4 | G110: =IF(G$109=0,"-",INDIRECT($E$57&$E110&$F110)*1000/G$109) -> 0.02629046578 | P110: old DIN : | Q110: S1 = (Cl+2SO4)/HCO3 | T110: = Corrosion Index (NL) | W110: = Larson-Skold index
B111: HCO3 - | E111: =SUBSTITUTE(ADDRESS(1, MATCH("m_HCO3-(mol/kgw)",INDIRECT(E$57&"$A$1:$DZ$1"),0), 4,1,), "1", "") -> AB | F111: 4 | G111: =IF(G$109=0,"-",INDIRECT($E$57&$E111&$F111)*1000/G$109) -> 0.9648834632
B112: CaHCO3+ | E112: =SUBSTITUTE(ADDRESS(1, MATCH("m_CaHCO3+(mol/kgw)",INDIRECT(E$57&"$A$1:$DZ$1"),0), 4,1,), "1", "") -> AF | F112: 4 | G112: =IF(G$109=0,"-",INDIRECT($E$57&$E112&$F112)*1000/G$109) -> 2.505313922e-09
B113: MgHCO3+ | E113: =SUBSTITUTE(ADDRESS(1, MATCH("m_MgHCO3+(mol/kgw)",INDIRECT(E$57&"$A$1:$DZ$1"),0), 4,1,), "1", "") -> AJ | F113: 4 | G113: =IF(G$109=0,"-",INDIRECT($E$57&$E113&$F113)*1000/G$109) -> 0.001308223843 | P113: Historical indexes: | Y113: no scaling | AA113: no corrosion
B114: Other HCO3 - | E114: =SUBSTITUTE(ADDRESS(1, MATCH("HCO3T",INDIRECT(E$57&"$A$1:$DZ$1"),0), 4,1,), "1", "") -> BX | F114: 4 | G114: =IF(G$109=0,"-",INDIRECT($E$57&$E114&$F114)*1000/G$109-(G111+G112+G113)) -> 0.000196690301 | P114: Langelier Saturation Index | S114: LSI = SI-c | Y114: < 0.2 - 1.0
B115: CO3 2- | E115: =SUBSTITUTE(ADDRESS(1, MATCH("m_CO3-2(mol/kgw)",INDIRECT(E$57&"$A$1:$DZ$1"),0), 4,1,), "1", "") -> AC | F115: 4 | G115: =IF(G$109=0,"-",INDIRECT($E$57&$E115&$F115)*1000/G$109) -> 0.003849729676 | P115: Ryznar Stability Index | S115: RSI = 2 (pHs) - pH | Y115: > 6.2 | AA115: < 6.8
B116: CaCO3 | E116: =SUBSTITUTE(ADDRESS(1, MATCH("m_CaCO3(mol/kgw)",INDIRECT(E$57&"$A$1:$DZ$1"),0), 4,1,), "1", "") -> AG | F116: 4 | G116: =IF(G$109=0,"-",INDIRECT($E$57&$E116&$F116)*1000/G$109) -> 0.003167762265 | P116: Puckorius Scaling Index | S116: PSI = 2 (pHs) - pHeq | U116: pHeq = 1.465 x log10[Alkalinity] + 4.54 | Y116: < 6.0
B117: MgCO3 | E117: =SUBSTITUTE(ADDRESS(1, MATCH("m_MgCO3(mol/kgw)",INDIRECT(E$57&"$A$1:$DZ$1"),0), 4,1,), "1", "") -> AK | F117: 4 | G117: =IF(G$109=0,"-",INDIRECT($E$57&$E117&$F117)*1000/G$109) -> 0.0002721087448 | P117: Larson-Skold index | S117: L&SkI = (Cl+ 2SO4) / Alk | AA117: < 0.8
B118: Other CO3 2- | E118: =SUBSTITUTE(ADDRESS(1, MATCH("CO3T",INDIRECT(E$57&"$A$1:$DZ$1"),0), 4,1,), "1", "") -> BY | F118: 4 | G118: =IF(G$109=0,"-",INDIRECT($E$57&$E118&$F118)*1000/G$109-(G115+G116+G117)) -> 3.155372673e-05
B119: Ca | D119: mmol/kgw | E119: =SUBSTITUTE(ADDRESS(1, MATCH("Ca(mol/kgw)",INDIRECT(E$57&"$A$1:$DZ$1"),0), 4,1,), "1", "") -> L | F119: 4 | G119: =INDIRECT($E$57&$E119&$F119)*1000 -> 1.043444766
B120: Ca 2+ | E120: =SUBSTITUTE(ADDRESS(1, MATCH("m_Ca+2(mol/kgw)",INDIRECT(E$57&"$A$1:$DZ$1"),0), 4,1,), "1", "") -> AE | F120: 4 | G120: =IF(G$119=0,"-",INDIRECT($E$57&$E120&$F120)*1000/G$119) -> 0.9834404192
B121: CaHCO3 + | E121: =SUBSTITUTE(ADDRESS(1, MATCH("m_CaHCO3+(mol/kgw)",INDIRECT(E$57&"$A$1:$DZ$1"),0), 4,1,), "1", "") -> AF | F121: 4 | G121: =IF(G$119=0,"-",INDIRECT($E$57&$E121&$F121)*1000/G$119) -> 4.362372099e-09
B122: CaCO3 | E122: =SUBSTITUTE(ADDRESS(1, MATCH("m_CaCO3(mol/kgw)",INDIRECT(E$57&"$A$1:$DZ$1"),0), 4,1,), "1", "") -> AG | F122: 4 | G122: =IF(G$119=0,"-",INDIRECT($E$57&$E122&$F122)*1000/G$119) -> 0.005515858751
B123: CaSO4 | E123: =SUBSTITUTE(ADDRESS(1, MATCH("m_CaSO4(mol/kgw)",INDIRECT(E$57&"$A$1:$DZ$1"),0), 4,1,), "1", "") -> AH | F123: 4 | G123: =IF(G$119=0,"-",INDIRECT($E$57&$E123&$F123)*1000/G$119) -> 0.01061237305
B124: Mg | D124: mmol/kgw | E124: =SUBSTITUTE(ADDRESS(1, MATCH("Mg(mol/kgw)",INDIRECT(E$57&"$A$1:$DZ$1"),0), 4,1,), "1", "") -> M | F124: 4 | G124: =INDIRECT($E$57&$E124&$F124)*1000 -> 0.1638274498 | J124: SO4 - species
B125: Mg 2+ | E125: =SUBSTITUTE(ADDRESS(1, MATCH("m_Mg+2(mol/kgw)",INDIRECT(E$57&"$A$1:$DZ$1"),0), 4,1,), "1", "") -> AI | F125: 4 | G125: =IF(G$124=0,"-",INDIRECT($E$57&$E125&$F125)*1000/G$124) -> 0.9599284086
B126: MgHCO3 + | E126: =SUBSTITUTE(ADDRESS(1, MATCH("m_MgHCO3+(mol/kgw)",INDIRECT(E$57&"$A$1:$DZ$1"),0), 4,1,), "1", "") -> AJ | F126: 4 | G126: =IF(G$124=0,"-",INDIRECT($E$57&$E126&$F126)*1000/G$124) -> 0.01450859673
B127: MgCO3 | E127: =SUBSTITUTE(ADDRESS(1, MATCH("m_MgCO3(mol/kgw)",INDIRECT(E$57&"$A$1:$DZ$1"),0), 4,1,), "1", "") -> AK | F127: 4 | G127: =IF(G$124=0,"-",INDIRECT($E$57&$E127&$F127)*1000/G$124) -> 0.003017767996
B128: MgSO4 | E128: =SUBSTITUTE(ADDRESS(1, MATCH("m_MgSO4(mol/kgw)",INDIRECT(E$57&"$A$1:$DZ$1"),0), 4,1,), "1", "") -> AL | F128: 4 | G128: =IF(G$124=0,"-",INDIRECT($E$57&$E128&$F128)*1000/G$124) -> 0.0217433829
B129: S (in SO4) | D129: mmol/kgw | E129: =SUBSTITUTE(ADDRESS(1, MATCH("S(6)(mol/kgw)",INDIRECT(E$57&"$A$1:$DZ$1"),0), 4,1,), "1", "") -> U | F129: 4 | G129: =INDIRECT($E$57&$E129&$F129)*1000 -> 0.2291381527
B130: SO4 2- | E130: =SUBSTITUTE(ADDRESS(1, MATCH("m_SO4-2(mol/kgw)",INDIRECT(E$57&"$A$1:$DZ$1"),0), 4,1,), "1", "") -> AM | F130: 4 | G130: =IF(G$129=0,"-",INDIRECT($E$57&$E130&$F130)*1000/G$129) -> 0.9331708305
B131: CaSO4 | E131: =SUBSTITUTE(ADDRESS(1, MATCH("m_CaSO4(mol/kgw)",INDIRECT(E$57&"$A$1:$DZ$1"),0), 4,1,), "1", "") -> AH | F131: 4 | G131: =IF(G$129=0,"-",INDIRECT($E$57&$E131&$F131)*1000/G$129) -> 0.0483264135
B132: MgSO4 | E132: =SUBSTITUTE(ADDRESS(1, MATCH("m_MgSO4(mol/kgw)",INDIRECT(E$57&"$A$1:$DZ$1"),0), 4,1,), "1", "") -> AL | F132: 4 | G132: =IF(G$129=0,"-",INDIRECT($E$57&$E132&$F132)*1000/G$129) -> 0.01554591817
B133: Other SO4 2- | E133: calc | F133: - | G133: =IF(G$129=0,"-",1-(G130+G131+G132)) -> 0.002956837871
B134: H+ | D134: mmol/kgw | E134: =SUBSTITUTE(ADDRESS(1, MATCH("m_H+(mol/kgw)",INDIRECT(E$57&"$A$1:$DZ$1"),0), 4,1,), "1", "") -> AN | F134: 4 | G134: =INDIRECT($E$57&$E134&$F134)*1000 -> 1.089727078e-05
B135: OH- | D135: mmol/kgw | E135: =SUBSTITUTE(ADDRESS(1, MATCH("m_OH-(mol/kgw)",INDIRECT(E$57&"$A$1:$DZ$1"),0), 4,1,), "1", "") -> AO | F135: 4 | G135: =INDIRECT($E$57&$E135&$F135)*1000 -> 0.0003337561293
G138: For further details see file/sheet 'phreeqc.out'

Sheet Run_Control
A2: Run Control | C2: AC4E - PHREEQXCEL
B6: Excel-sheet (name) | D6: External file (optional)
A8: Input code | B8: Input
A12: Database | B12: Stimela
A13: options: | B13: Stimela
B14: Wateq4f
B15: Minteqv4
A16: Return-sheet | B16: InitialSolution_Validation | D16: TRUE
A33: PHREEQXCEL requires:
A34: - Microsoft Excel | B34: (version 2007 or higher)
A35: - IphreeqCOM module | B35: (version IPhreeqcCOM 3.9.0-17591 or higher)

Sheet Input
A1: # Database (modifications and/or additonal data)
A2: SOLUTION_MASTER_SPECIES | E2: # insert modifications and/or additonal data
B3: #element | D3: species | F3: alk | G3: gfw_formula | I3: element_gfw
B4: Turb | D4: Turb | F4: 0.0 | G4: Turb | I4: 1.0 | N4: # Turbidity (FTU)
B5: Col | D5: Col | F5: 0.0 | G5: Col | I5: 1.0 | N5: # Color (mg/L Pt-Co)
B6: Uvab | D6: Uvab | F6: 0.0 | G6: Uvab | I6: 1.0 | N6: # UV absorbance or extinction (/m)
B7: Doc | D7: Doc | F7: 0.0 | G7: Doc | I7: 12.011 | N7: # DOC as C, uncharged | Q7: Doc = 12.011 g C /mol
B8: As | D8: H3AsO4 | F8: -1.0 | G8: As | I8: 74.922 | N8: # from wateq4f.dat/minteq.v4.dat + CIAAW 2024
B9: Cr | D9: CrO4-2 | F9: 1.0 | G9: Cr | I9: 51.996 | N9: # from minteq.v4.dat + CIAAW 2024
B10: Hg | D10: Hg(OH)2 | F10: 0.0 | G10: Hg | I10: 200.59 | N10: # from minteq.v4.dat + CIAAW 2024
B11: Ni | D11: Ni+2 | F11: 0.0 | G11: Ni | I11: 58.693 | N11: # from wateq4f.dat/minteq.v4.dat + CIAAW 2024
B12: Sb | D12: Sb(OH)6- | F12: 0.0 | G12: Sb | I12: 121.76 | N12: # from minteq.v4.dat + CIAAW 2024
B13: Se | D13: SeO4-2 | F13: 0.0 | G13: Se | I13: 78.971 | N13: # from wateq4f.dat/minteq.v4.dat + CIAAW 2024
B14: Cyanide | D14: Cyanide- | F14: 1.0 | G14: Cyanide | I14: 26.018 | N14: # from minteq.v4.dat + CIAAW 2024 | S14: =12.011+14.007 -> 26.018
B15: [N+3] | D15: [N+3]O2- | F15: 0.0 | G15: N | I15: 14.007 | N15: # from stimela.dat (for applying minteq.v4.dat)
B16: [N-3] | D16: [N-3]H4+ | F16: 0.0 | G16: NH4 | I16: 14.007 | N16: # from stimela.dat (for applying minteq.v4.dat)
A17: SOLUTION_SPECIES | E17: # insert modifications and/or additonal data
B18: Turb | D18: = Turb | N18: # primary master species
B19: Col | D19: = Col | N19: # primary master species
B20: Uvab | D20: = Uvab | N20: # primary master species
B21: Doc | D21: = Doc | N21: # primary master species
B22: H3AsO4 | D22: = H3AsO4 | N22: # primary master species
B23: CrO4-2 | D23: = CrO4-2 | N23: # primary master species
B24: Hg(OH)2 | D24: = Hg(OH)2 | N24: # primary master species
B25: Ni+2 | D25: = Ni+2 | N25: # primary master species
B26: Sb(OH)6- | D26: = Sb(OH)6- | N26: # primary master species
B27: SeO4-2 | D27: = SeO4-2 | N27: # primary master species
B28: Cyanide- | D28: = Cyanide- | N28: # primary master species
B29: [N-3]H4+ = [N-3]H4+ | N29: # from stimela.dat (for applying minteq.v4.dat)
C30: -gamma 2.5 0
C31: -Vm 5.35 2.345 3.72 -2.88 1.55 2.5 -4.54 217 2.344e-2 0.569
C32: -viscosity 6.94e-2 -0.141 2.04e-2 9.4e-3 3.73e-2 0.898
C33: -dw 1.98e-9 203 1.47 2.644 6.81e-2
B34: [N-3]H4+ = [N-3]H3 + H+ | N34: # from stimela.dat (for applying minteq.v4.dat)
C35: -log_k -9.252
C36: -delta_h 12.48 kcal
C37: -analytic 0.6322 -0.001225 -2835.76
C38: -Vm 6.69 2.8 3.58 -2.88 1.43
C39: -viscosity 0 -2.24e-2 0.101 8.66e-3 2.86e-2 -0.143 -0.769
C40: -dw 2.28e-9
B41: [N+3]O2- = [N+3]O2- | N41: # from stimela.dat (for applying minteq.v4.dat)
C42: -gamma 3 0
C43: -Vm 5.5864 5.859 3.4472 -3.0212 1.1847 # supcrt
C44: -dw 1.91e-9
B45: # to be added: species, phases etc. for these solution-species, whenever relevant
B46: # or apply a database which includes relevant species, such as wateq4f.dat or minteq.v4.dat
A47: # | B47: H2O + 0.01e- = H2O-0.01 | E47: ; | F47: -log_k | G47: -9 | N47: # aids convergence in redox (optional)
A48: PHASES | E48: # insert modifications and/or additonal data
B49: pH_Fix | N49: # for fixed pH
B50: H+ = H+
B51: -log_k | C51: 0.0
A52: EXCHANGE_MASTER_SPECIES | E52: # insert modifications and/or additonal data
A53: EXCHANGE_SPECIES | E53: # insert modifications and/or additonal data
A54: SURFACE_MASTER_SPECIES | E54: # insert modifications and/or additonal data
A55: SURFACE_SPECIES | E55: # insert modifications and/or additonal data
A56: RATES | E56: # insert modifications and/or additonal data
A59: # Output (on sheets phreeqc.out + Output)
A60: PRINT
B61: -alkalinity | E61: true | N61: # prints species that contribute to alkalinity. Default: false
A63: SELECTED_OUTPUT | N63: # SELECTED_OUTPUT 1
B64: -reset | E64: false | N64: # overwrites the default true values
B65: -high_precision | E65: true | N65: # extra numerical precision in this selected output (12 decimal places, default is 3 or 4).
B66: -simulation | E66: true | N66: # prints simulation number
B67: -state | E67: true | N67: # prints the type of calculation performed
B68: -solution | E68: true | N68: # prints solution number
B69: -step | E69: true | N69: # prints reaction step number for batch-reaction
B70: -pH | E70: true | N70: # prints pH
B71: -pe | E71: true | N71: # prints pe
B72: -temperature | E72: true | N72: # prints temperature (Celsius).
B73: -alkalinity | E73: true | N73: # prints alkalinity (eq/kgw)
A74: # | B74: -percent_error | E74: true | N74: # prints percent error in charge balance
B75: -totals | E75: C C(4) C(-4) Ca Mg Fe Fe(2) Fe(3) Mn Mn(2) Mn(3) S S(6) S(-2) P Na Cl | N75: # element total concentration (mol/kgw) (name from 1st column under _MASTER_SPECIES)
B76: -molalities | E76: O2 CO2 HCO3- CO3-2 CH4 Ca+2 CaHCO3+ CaCO3 CaSO4 Mg+2 MgHCO3+ MgCO3 MgSO4 SO4-2 H+ OH- | N76: # species concentration (mol/kgw) (name follows =-sign under SPECIES)
B77: -saturation_indices | E77: Calcite Aragonite Gypsum Anhydrite Dolomite Hydroxyapatite Pyrite Siderite Hematite Rhodochrosite Vivianite O2(g) CO2(g) H2O(g) CH4(g) H2S(g) | N77: # SI-values for PHASES
A79: USER_PUNCH | N79: # USER_PUNCH 1
B80: -headings | D80: rho(kg/L) kgw vol(L) kgw/L TDS(mg/L) Charge_Err% Charge_Bal Cation Anion Ion_Str EC(mS/m) EC20(mS/m) EC25(mS/m) pO2 pNtg pCO2 pH2O CO2T HCO3T CO3T CCPP Desc Title
B81: -start
C82: 10 | D82: PUNCH RHO | N82: # Density in kg/L
C83: 20 | D83: PUNCH TOT("water") | N83: # Mass of water in kg
C84: 30 | D84: PUNCH SOLN_VOL | N84: # Volume of solution in L
C85: 40 | D85: PUNCH TOT("water")/SOLN_VOL | N85: # Molality to molarity factor in kgw/L
C86: 50 | D86: PUNCH (RHO*SOLN_VOL - TOT("water"))/SOLN_VOL*1e6 | N86: # TDS in mg/L = (kg solution - kg water)/L solution * 1000000
C87: 60 | D87: PUNCH PERCENT_ERROR | N87: # Error in %
C88: 70 | D88: PUNCH CHARGE_BALANCE | N88: # equal to TOTMOLE("charge")
C89: 80 | D89: Anion = ( TOT("charge")/(PERCENT_ERROR/100) - TOT("charge") ) /2 | N89: # Calculate Anion concentration from Charge Balance (=Cat-An) and Error (=(Cat-An)/(Cat+An))
C90: 90 | D90: PUNCH ( Anion + TOT("charge") ) | N90: # Cation concentration from TOT("Charge") and "Anion" in eq/kgw
C91: 100 | D91: PUNCH Anion | N91: # Anion concentration in eq/kgw
C92: 110 | D92: PUNCH MU | N92: # Ionic strength in mol/kgw
C93: 120 | D93: PUNCH SC/10 | N93: # Elect. Conductivity in mS/m
C94: 130 | D94: PUNCH SC/10*(1-0.962144+0.962144*(-0.198058+EXP(-1.992186+231.17628/(TC+86.39123)))^0.965078) | N94: # Elect. Conductivity (20C) in mS/m (ISO 7888)
C95: 140 | D95: PUNCH SC/10*1.116*(1-0.962144+0.962144*(-0.198058+EXP(-1.992186+231.17628/(TC+86.39123)))^0.965078) | N95: # Elect. Conductivity (25C) in mS/m (ISO 7888)
C96: 150 | D96: PUNCH PR_P("O2(g)") PR_P("Ntg(g)") PR_P("CO2(g)") PR_P("H2O(g)") | N96: # Pressure (atm) of gas components in a Peng-Robinson GAS_PHASE
C97: 160 | D97: PUNCH SUM_SPECIES("*CO2*", "C")/TOT("water") | N97: # Print molality of all CO2-species of C
C98: 170 | D98: PUNCH SUM_SPECIES("*HCO3*", "C")/TOT("water") | N98: # Print molality of all HCO3-species of C
C99: 180 | D99: PUNCH TOT("C(4)") - SUM_SPECIES("*HCO3*", "C")/TOT("water") - SUM_SPECIES("*CO2*", "C")/TOT("water") | N99: # Print molality of all CO3-species of C
C100: 190 | D100: PUNCH EQUI_DELTA("Calcite")/TOT("water") | N100: # CCPP in mol/kgw
C101: 200 | D101: PUNCH DESCRIPTION | N101: # Description associated with current solution or current mixture
C102: 210 | D102: PUNCH TITLE | N102: # Value of the last TITLE keyword definition
B103: -end
A105: # END | B105: # with an END statement the declarations above are regarded as "Simulation 1"
A108: # Simulations
A110: # Initial water + validation parameters
A111: TITLE | B111: Initial solution
B112: SOLUTION | D112: 1
B113: # user data
B114: units | D114: mg/L
B115: temp | D115: =SUBSTITUTE(FIXED(InitialSolution_Validation!G13,1,TRUE),",",".") -> 10.9 | H115: # Celcius | J115: Temperature of pH-measurement | N115: Use field-temperature whenever unknown
A116: =IF(AND(ISNUMBER(InitialSolution_Validation!G11),InitialSolution_Validation!G11>0),"","#") ->  | B116: O(0) | D116: =SUBSTITUTE(FIXED(InitialSolution_Validation!G11,2,TRUE),",",".") -> 11.40 | F116: as O | H116: # input if O2> 0, else:
A117: =IF(A116="#","","#") -> # | B117: O(0) | D117: ="1 O2(g) "&SUBSTITUTE(FIXED(LOG(N117),4,TRUE),",",".") -> 1 O2(g) -0.6819 | H117: # equilibrium with atmospheric air | M117: pO2 = | N117: 0.208
A118: =IF(AND(ISNUMBER(InitialSolution_Validation!G12),InitialSolution_Validation!G12>0),"","#") ->  | B118: pH | D118: =SUBSTITUTE(FIXED(InitialSolution_Validation!G12,2,TRUE),",",".") -> 7.99 | H118: # PHREEQC default | K118: pH = 7.00
A119: =IF(IFERROR(D119,"#")="#","#","") -> # | B119: Turb | D119: =SUBSTITUTE(FIXED(InitialSolution_Validation!G14,3,TRUE),",",".") ->  | E119: umol/L | F119: as Turb | H119: # Turb: 1 e-6 mol/kgw equals 1 FTU | N119: small molality to limit the effect on rho
A120: # | B120: Col | D120: =SUBSTITUTE(FIXED(InitialSolution_Validation!G18,3,TRUE),",",".") ->  | E120: umol/L | F120: as Col | H120: # Col: 1 e-6 mol/kgw equals 1 mg/L Pt-Co | N120: small molality to limit the effect on rho
B121: Uvab | D121: =SUBSTITUTE(FIXED(InitialSolution_Validation!G19,3,TRUE),",",".") -> 0.500 | E121: umol/L | F121: as Uvab | H121: # Uvab: 1 e-6 mol/kgw equals 1 /m | N121: small molality to limit the effect on rho
A122: # | B122: Doc | D122: =SUBSTITUTE(FIXED(InitialSolution_Validation!G20,3,TRUE),",",".") ->  | F122: as C
H123: # dominant species at pH 7.5-8.5 and pe 13-14 (minteq.v4.dat)
A124: =IF(IFERROR(D124,"#")="#","#","") ->  | B124: Si | D124: =SUBSTITUTE(FIXED(InitialSolution_Validation!G21,3,TRUE),",",".") -> 5.570 | F124: as Si | H124: # H4SiO4 (=SiO2:2H2O)
B125: Ca | D125: =SUBSTITUTE(FIXED(InitialSolution_Validation!G22,3,TRUE),",",".") -> 41.800 | F125: as Ca | H125: # Ca+2
B126: Mg | D126: =SUBSTITUTE(FIXED(InitialSolution_Validation!G23,3,TRUE),",",".") -> 3.980 | F126: as Mg | H126: # Mg+2
B127: Na | D127: =SUBSTITUTE(FIXED(InitialSolution_Validation!G24,3,TRUE),",",".") -> 11.400 | F127: as Na | H127: # Na+
B128: K | D128: =SUBSTITUTE(FIXED(InitialSolution_Validation!G25,3,TRUE),",",".") -> 1.060 | F128: as K | H128: # K+
A129: =IF(IFERROR(D129,"#")="#","#","") -> # | B129: Fe | D129: =SUBSTITUTE(FIXED(InitialSolution_Validation!G26,3,TRUE),",",".") ->  | F129: as Fe | H129: # Fe(+3): Fe(OH)2+
A130: =IF(IFERROR(D130,"#")="#","#","") ->  | B130: Mn | D130: =SUBSTITUTE(FIXED(InitialSolution_Validation!G27,3,TRUE),",",".") -> 0.014 | F130: as Mn | H130: # Mn(+4): MnO2 (Pyrolusite)
A131: # | B131: [N-3] | D131: =SUBSTITUTE(FIXED(InitialSolution_Validation!G28,3,TRUE),",",".") ->  | F131: as NH4 | H131: # NH4+ | I131: assumed inert
A132: =IF(IFERROR(D132,"#")="#","#","") ->  | B132: Alkalinity | D132: =SUBSTITUTE(FIXED(InitialSolution_Validation!G29,3,TRUE),",",".") -> 109.000 | F132: as HCO3 | H132: # HCO3-
B133: Cl | D133: =SUBSTITUTE(FIXED(InitialSolution_Validation!G30,3,TRUE),",",".") -> 19.000 | F133: as Cl | H133: # Cl-
B134: N(+5) | D134: =SUBSTITUTE(FIXED(InitialSolution_Validation!G31,3,TRUE),",",".") -> 5.190 | F134: as NO3 | H134: # NO3-
B135: S(+6) | D135: =SUBSTITUTE(FIXED(InitialSolution_Validation!G32,3,TRUE),",",".") -> 22.000 | F135: as SO4 | H135: # SO4-2
B136: F | D136: =SUBSTITUTE(FIXED(InitialSolution_Validation!G33,3,TRUE),",",".") -> 0.080 | F136: as F | H136: # F-
B137: Br | D137: =SUBSTITUTE(FIXED(InitialSolution_Validation!G34,3,TRUE),",",".") -> 0.000 | F137: as Br | H137: # Br-
B138: P | D138: =SUBSTITUTE(FIXED(InitialSolution_Validation!G35,3,TRUE),",",".") -> 0.210 | F138: as PO4 | H138: # HPO4-2 H2PO4-
A139: # | B139: [N+3] | D139: =SUBSTITUTE(FIXED(InitialSolution_Validation!G36,3,TRUE),",",".") ->  | F139: as NO2 | H139: # NO2- | I139: assumed inert
B140: Al | D140: =SUBSTITUTE(FIXED(InitialSolution_Validation!G37,3,TRUE),",",".") -> 3.800 | E140: ug/L | F140: as Al | H140: # Al(OH)4- Al(OH)3
A141: # | B141: Sb | D141: =SUBSTITUTE(FIXED(InitialSolution_Validation!G38,3,TRUE),",",".") ->  | E141: ug/L | F141: as Sb | H141: # Sb(+5): SbO3-
B142: As | D142: =SUBSTITUTE(FIXED(InitialSolution_Validation!G39,3,TRUE),",",".") -> 1.150 | E142: ug/L | F142: as As | H142: # As(+5): HAsO4-2 H2AsO4-
B143: Ba | D143: =SUBSTITUTE(FIXED(InitialSolution_Validation!G40,3,TRUE),",",".") -> 11.700 | E143: ug/L | F143: as Ba | H143: # Ba+2
B144: B | D144: =SUBSTITUTE(FIXED(InitialSolution_Validation!G41,3,TRUE),",",".") -> 11.800 | E144: ug/L | F144: as B | H144: # H3BO3
A145: # | B145: Cd | D145: =SUBSTITUTE(FIXED(InitialSolution_Validation!G42,3,TRUE),",",".") ->  | E145: ug/L | F145: as Cd | H145: # Cd+2
B146: Cr | D146: =SUBSTITUTE(FIXED(InitialSolution_Validation!G43,3,TRUE),",",".") -> 0.669 | E146: ug/L | F146: as Cr | H146: # Cr(+6): CrO4-2
A147: # | B147: Cu | D147: =SUBSTITUTE(FIXED(InitialSolution_Validation!G44,3,TRUE),",",".") ->  | E147: ug/L | F147: as Cu | H147: # Cu(+2): CuCO3
A148: =IF(IFERROR(D148,"#")="#","#","") -> # | B148: Cyanide | D148: =SUBSTITUTE(FIXED(InitialSolution_Validation!G45,3,TRUE),",",".") ->  | E148: ug/L | F148: as Cyanide | H148: # Hcyanide
A149: =IF(IFERROR(D149,"#")="#","#","") -> # | B149: Pb | D149: =SUBSTITUTE(FIXED(InitialSolution_Validation!G46,3,TRUE),",",".") ->  | E149: ug/L | F149: as Pb | H149: # PbCO3 Pb(OH)+
A150: =IF(IFERROR(D150,"#")="#","#","") ->  | B150: Li | D150: =SUBSTITUTE(FIXED(InitialSolution_Validation!G47,3,TRUE),",",".") -> 0.000 | E150: ug/L | F150: as Li | H150: # Li+
A151: =IF(IFERROR(D151,"#")="#","#","") -> # | B151: Hg | D151: =SUBSTITUTE(FIXED(InitialSolution_Validation!G48,3,TRUE),",",".") ->  | E151: ug/L | F151: as Hg | H151: # Hg(+2): Hg(OH)2
A152: # | B152: Ni | D152: =SUBSTITUTE(FIXED(InitialSolution_Validation!G49,3,TRUE),",",".") ->  | E152: ug/L | F152: as Ni | H152: # Ni+2
A153: # | B153: Se | D153: =SUBSTITUTE(FIXED(InitialSolution_Validation!G50,3,TRUE),",",".") ->  | E153: ug/L | F153: as Se | H153: # Se(+6): SeO4-2
A154: =IF(IFERROR(D154,"#")="#","#","") ->  | B154: Sr | D154: =SUBSTITUTE(FIXED(InitialSolution_Validation!G51,3,TRUE),",",".") -> 0.000 | E154: ug/L | F154: as Sr | H154: # Sr+2
A155: =IF(IFERROR(D155,"#")="#","#","") -> # | B155: Zn | D155: =SUBSTITUTE(FIXED(InitialSolution_Validation!G52,3,TRUE),",",".") ->  | E155: ug/L | F155: as Zn | H155: # Zn+2 ZnCO3
B156: # Description | D156: =InitialSolution_Validation!B8 -> Vitens Pb. Soestduinen, produced drinking water (2025 average values) | H156: # Description is only allowed in SOLUTION_SPREAD
B158: # PHREEQC data
B159: water | D159: 1.0 | H159: # PHREEQC default | K159: 1 kg water
B160: pressure | D160: 1.0 | H160: # PHREEQC default | K160: 1 atm
B161: density | D161: 1.0 | E161: calculate | H161: # PHREEQC default | K161: 1 kg/L | M161: calculute = density is calculated by PHREEQC
B162: pe | D162: 4.0 | H162: # PHREEQC default
B163: redox | D163: O(-2)/O(0) | H163: # always some O2, to prevent uncontrolled redox reactions
B164: Ntg | D164: ="1 Ntg(g) "&SUBSTITUTE(FIXED(LOG(N164),4,TRUE),",",".") -> 1 Ntg(g) -0.1079 | H164: # SI = log(pa) | M164: pN2 = | N164: 0.78
A165: # | B165: Oxg | D165: ="1 Oxg(g) "&SUBSTITUTE(FIXED(LOG(N165),4,TRUE),",",".") -> 1 Oxg(g) -0.6819 | H165: # equilibrium with atmospheric air | M165: pO2 = | N165: 0.208
B167: END | C167: # Simulation | E167: 1
A169: TITLE | B169: Final calculation | M169: # Electon balancing (creating redox equilibrium and calculation of pe). This might change parameters in initial solution
B170: USE solution 1 | D170: ; EQUILIBRIUM_PHASES 1 ; | J170: ; END | L170: # Simulation | N170: =E167+1 -> 2 | P170: # Final calculation always includes SAVE solution
A172: TITLE | B172: Simulation for calculating pH at field temperature (real solution 1)
B173: USE solution 1 | D173: ; REACTION_TEMPERATURE 1 ; | H173: =SUBSTITUTE(FIXED(InitialSolution_Validation!G10,1,TRUE),",",".") -> 10.9 | J173: =IF(A117="", "; EQUILIBRIUM_PHASES 1 ; O2(g) "&SUBSTITUTE(FIXED(LOG(N117),4,TRUE),",","."),"") ->  | P173: ; SAVE solution 1 | S173: ; END | T173: # Simulation | V173: =N170+1 -> 3
A175: TITLE | B175: Simulation for calculating Electical conductivity at 25C | M175: # Note that with change of temperature also the ionic composition changes
B176: USE solution 1 | D176: ; REACTION_TEMPERATURE 1 ; | H176: 25 | S176: ; END | T176: # Simulation | V176: =V173+1 -> 4
A178: TITLE | B178: Simulation for calculating CalciumCarbonate Precipitation Potential | M178: # PHREEQC-default: SI assumed as 0.0 with 10 mol Calcite whenever required for dissolution
B179: USE solution 1 | D179: ; EQUILIBRIUM_PHASES 1 ; | H179: Calcite | S179: ; END | T179: # Simulation | V179: =V176+1 -> 5
A181: TITLE | B181: Simulation for calculating Buffer Capacity (dpH after 0.01 mmol/kgw HCl) and pH stability (dpH after 0.1 mmol/kgw HCl)
B182: USE solution 1 | D182: ; REACTION 1 ; | H182: HCl 1 ; | I182: 0.01 0.10 millimoles | M182: ; INCREMENTAL_REACTIONS false | S182: ; END | T182: # Simulation | V182: =V179+1 -> 6
A184: TITLE | B184: Simulation for calculating Buffer Capacity (max. H+ for dpH < -0.30) | M184: # pH_Fix at field temperature | Q184: =InitialSolution_Validation!G83-0.3 -> 7.69
B185: USE solution 1 | D185: ; EQUILIBRIUM_PHASES 1 ; | H185: pH_Fix | J185: =SUBSTITUTE(FIXED(-(InitialSolution_Validation!G12-0.3),2,TRUE),",",".") -> -7.69 | K185: HCl 0.01 | S185: ; END | T185: # Simulation | V185: =V182+1 -> 7
A187: TITLE | B187: Simulation for calculating CalciumCarbonate Precipitation Potential at 60, 90 and 100 C
B188: USE solution 1 | D188: ; REACTION_TEMPERATURE 1 ; | H188: 60 90 100 | J188: ; EQUILIBRIUM_PHASES 1 ; | N188: Calcite | S188: ; END | T188: # Simulation | V188: =V185+1 -> 8 | Y188: # last END is optional (EndOfFile=END)
A192: # Trailing simulations
A194: # Example code in compact code format:
A195: #TITLE | B195: Simulation for acid dosing to given pH | G195: (plus simulation for calculating CCPP)
A196: # | B196: USE solution | D196: =D112 -> 1 | E196: ; EQUILIBRIUM_PHASES 1; | H196: pH_Fix | I196: -6.50 | J196: HCl | K196: 1 | P196: ; SAVE solution | R196: =D196+1 -> 2 | S196: ; END | T196: # Simulation | V196: =V188+1 -> 9
A197: # | B197: USE Solution | D197: =R196 -> 2 | E197: ; EQUILIBRIUM_PHASES 1; | H197: Calcite 0.0 | S197: ; END | T197: # Simulation | V197: =V196+1 -> 10

Sheet phreeqc.out
A1: ------------------------------------
A2: Reading input data for simulation 1.
A3: ------------------------------------
B5: SOLUTION_MASTER_SPECIES | F5: # insert modifications and/or additonal data
C6: Turb | E6: Turb | G6: 0.0 | H6: Turb | J6: 1.0 | O6: # Turbidity (FTU)
C7: Col | E7: Col | G7: 0.0 | H7: Col | J7: 1.0 | O7: # Color (mg/L Pt-Co)
C8: Uvab | E8: Uvab | G8: 0.0 | H8: Uvab | J8: 1.0 | O8: # UV absorbance (/m)
C9: Doc | E9: Doc | G9: 0.0 | H9: Doc | J9: 12.011 | O9: # DOC as C, uncharged | R9: Doc = 12.011 g C /mol
C10: As | E10: H3AsO4 | G10: -1.0 | H10: As | J10: 74.922 | O10: # from wateq4f.dat/minteq.v4.dat + CIAAW 2024
C11: Cr | E11: CrO4-2 | G11: 1.0 | H11: Cr | J11: 51.996 | O11: # from minteq.v4.dat + CIAAW 2024
C12: Hg | E12: Hg(OH)2 | G12: 0.0 | H12: Hg | J12: 200.59 | O12: # from minteq.v4.dat + CIAAW 2024
C13: Ni | E13: Ni+2 | G13: 0.0 | H13: Ni | J13: 58.693 | O13: # from wateq4f.dat/minteq.v4.dat + CIAAW 2024
C14: Sb | E14: Sb(OH)6- | G14: 0.0 | H14: Sb | J14: 121.76 | O14: # from minteq.v4.dat + CIAAW 2024
C15: Se | E15: SeO4-2 | G15: 0.0 | H15: Se | J15: 78.971 | O15: # from wateq4f.dat/minteq.v4.dat + CIAAW 2024
C16: Cyanide | E16: Cyanide- | G16: 1.0 | H16: Cyanide | J16: 26.018 | O16: # from minteq.v4.dat + CIAAW 2024 | S16: 26,018
C17: [N+3] | E17: [N+3]O2- | G17: 0.0 | H17: N | J17: 14.007 | O17: # from stimela.dat (for applying minteq.v4.dat)
C18: [N-3] | E18: [N-3]H4+ | G18: 0.0 | H18: NH4 | J18: 14.007 | O18: # from stimela.dat (for applying minteq.v4.dat)
B19: SOLUTION_SPECIES | F19: # insert modifications and/or additonal data
C20: Turb | E20: = Turb | O20: # primary master species
C21: Col | E21: = Col | O21: # primary master species
C22: Uvab | E22: = Uvab | O22: # primary master species
C23: Doc | E23: = Doc | O23: # primary master species
C24: H3AsO4 | E24: = H3AsO4 | O24: # primary master species
C25: CrO4-2 | E25: = CrO4-2 | O25: # primary master species
C26: Hg(OH)2 | E26: = Hg(OH)2 | O26: # primary master species
C27: Ni+2 | E27: = Ni+2 | O27: # primary master species
C28: Sb(OH)6- | E28: = Sb(OH)6- | O28: # primary master species
C29: SeO4-2 | E29: = SeO4-2 | O29: # primary master species
C30: Cyanide- | E30: = Cyanide- | O30: # primary master species
C31: [N-3]H4+ = [N-3]H4+ | O31: # from stimela.dat (for applying minteq.v4.dat)
D32: gamma 2.5 0
D33: vm 5.35 2.345 3.72 -2.88 1.55 2.5 -4.54 217 2.344e-2 0.569
D34: viscosity 6.94e-2 -0.141 2.04e-2 9.4e-3 3.73e-2 0.898
D35: dw 1.98e-9 203 1.47 2.644 6.81e-2
C36: [N-3]H4+ = [N-3]H3 + H+ | O36: # from stimela.dat (for applying minteq.v4.dat)
D37: log_k -9.252
D38: delta_h 12.48 kcal
D39: analytical_expression 0.6322 -0.001225 -2835.76
D40: vm 6.69 2.8 3.58 -2.88 1.43
D41: viscosity 0 -2.24e-2 0.101 8.66e-3 2.86e-2 -0.143 -0.769
D42: dw 2.28e-9
C43: [N+3]O2- = [N+3]O2- | O43: # from stimela.dat (for applying minteq.v4.dat)
D44: gamma 3 0
D45: vm 5.5864 5.859 3.4472 -3.0212 1.1847 # supcrt
D46: dw 1.91e-9
B47: PHASES | F47: # insert modifications and/or additonal data
C48: pH_Fix | O48: # for fixed pH
C49: H+ = H+
C50: log_k | D50: 0.0
B51: EXCHANGE_MASTER_SPECIES | F51: # insert modifications and/or additonal data
B52: EXCHANGE_SPECIES | F52: # insert modifications and/or additonal data
B53: SURFACE_MASTER_SPECIES | F53: # insert modifications and/or additonal data
B54: SURFACE_SPECIES | F54: # insert modifications and/or additonal data
B55: RATES | F55: # insert modifications and/or additonal data
B56: PRINT
C57: alkalinity | F57: true | O57: # prints species that contribute to alkalinity. Default: false
B58: SELECTED_OUTPUT | O58: # SELECTED_OUTPUT 1
C59: reset | F59: false | O59: # overwrites the default true values
C60: high_precision | F60: true | O60: # extra numerical precision in this selected output (12 decimal places, default is 3 or 4).
C61: simulation | F61: true | O61: # prints simulation number
C62: state | F62: true | O62: # prints the type of calculation performed
C63: solution | F63: true | O63: # prints solution number
C64: step | F64: true | O64: # prints reaction step number for batch-reaction
C65: ph | F65: true | O65: # prints pH
C66: pe | F66: true | O66: # prints pe
C67: temperature | F67: true | O67: # prints temperature (Celsius).
C68: alkalinity | F68: true | O68: # prints alkalinity (eq/kgw)
C69: totals | F69: C C(4) C(-4) Ca Mg Fe Fe(2) Fe(3) Mn Mn(2) Mn(3) S S(6) S(-2) P Na Cl | O69: # element total concentration (mol/kgw) (name from 1st column under _MASTER_SPECIES)
C70: molalities | F70: O2 CO2 HCO3- CO3-2 CH4 Ca+2 CaHCO3+ CaCO3 CaSO4 Mg+2 MgHCO3+ MgCO3 MgSO4 SO4-2 H+ OH- | O70: # species concentration (mol/kgw) (name follows =-sign under SPECIES)
C71: saturation_indices | F71: Calcite Aragonite Gypsum Anhydrite Dolomite Hydroxyapatite Pyrite Siderite Hematite Rhodochrosite Vivianite O2(g) CO2(g) H2O(g) CH4(g) H2S(g) | O71: # SI-values for PHASES
B72: USER_PUNCH | O72: # USER_PUNCH 1
C73: headings | E73: rho(kg/L) kgw vol(L) kgw/L TDS(mg/L) Charge_Err% Charge_Bal Cation Anion Ion_Str EC(mS/m) EC20(mS/m) EC25(mS/m) pO2 pNtg pCO2 pH2O CO2T HCO3T CO3T CCPP Desc Title
C74: start
D75: 10 | E75: PUNCH RHO | O75: # Density in kg/L
D76: 20 | E76: PUNCH TOT("water") | O76: # Mass of water in kg
D77: 30 | E77: PUNCH SOLN_VOL | O77: # Volume of solution in L
D78: 40 | E78: PUNCH TOT("water")/SOLN_VOL | O78: # Molality to molarity factor in kgw/L
D79: 50 | E79: PUNCH (RHO*SOLN_VOL - TOT("water"))/SOLN_VOL*1e6 | O79: # TDS in mg/L = (kg solution - kg water)/L solution * 1000000
D80: 60 | E80: PUNCH PERCENT_ERROR | O80: # Error in %
D81: 70 | E81: PUNCH CHARGE_BALANCE | O81: # equal to TOTMOLE("charge")
D82: 80 | E82: Anion = ( TOT("charge")/(PERCENT_ERROR/100) - TOT("charge") ) /2 | O82: # Calculate Anion concentration from Charge Balance (=Cat-An) and Error (=(Cat-An)/(Cat+An))
D83: 90 | E83: PUNCH ( Anion + TOT("charge") ) | O83: # Cation concentration from TOT("Charge") and "Anion" in eq/kgw
D84: 100 | E84: PUNCH Anion | O84: # Anion concentration in eq/kgw
D85: 110 | E85: PUNCH MU | O85: # Ionic strength in mol/kgw
D86: 120 | E86: PUNCH SC/10 | O86: # Elect. Conductivity in mS/m
D87: 130 | E87: PUNCH SC/10*(1-0.962144+0.962144*(-0.198058+EXP(-1.992186+231.17628/(TC+86.39123)))^0.965078) | O87: # Elect. Conductivity (20C) in mS/m (ISO 7888)
D88: 140 | E88: PUNCH SC/10*1.116*(1-0.962144+0.962144*(-0.198058+EXP(-1.992186+231.17628/(TC+86.39123)))^0.965078) | O88: # Elect. Conductivity (25C) in mS/m (ISO 7888)
D89: 150 | E89: PUNCH PR_P("O2(g)") PR_P("Ntg(g)") PR_P("CO2(g)") PR_P("H2O(g)") | O89: # Pressure (atm) of gas components in a Peng-Robinson GAS_PHASE
D90: 160 | E90: PUNCH SUM_SPECIES("*CO2*", "C")/TOT("water") | O90: # Print molality of all CO2-species of C
D91: 170 | E91: PUNCH SUM_SPECIES("*HCO3*", "C")/TOT("water") | O91: # Print molality of all HCO3-species of C
D92: 180 | E92: PUNCH TOT("C(4)") - SUM_SPECIES("*HCO3*", "C")/TOT("water") - SUM_SPECIES("*CO2*", "C")/TOT("water") | O92: # Print molality of all CO3-species of C
D93: 190 | E93: PUNCH EQUI_DELTA("Calcite")/TOT("water") | O93: # CCPP in mol/kgw
D94: 200 | E94: PUNCH DESCRIPTION | O94: # Description associated with current solution or current mixture
D95: 210 | E95: PUNCH TITLE | O95: # Value of the last TITLE keyword definition
C96: end
B97: TITLE | C97: Initial solution
C98: SOLUTION | E98: 1
C99: units | E99: mg/L
C100: temp | E100: 10.9 | I100: # Celcius | K100: Temperature of pH-measurement | O100: Use field-temperature whenever unknown
C101: O(0) | E101: 11.40 | G101: as O | I101: # input if O2> 0, else:
C102: pH | E102: 7.99 | I102: # PHREEQC default | L102: pH = 7.00
C103: Uvab | E103: 0.500 | F103: umol/L | G103: as Uvab | I103: # Uvab: 1 e-6 mol/kgw equals 1 /m | O103: small molality to limit the effect on rho
C104: Si | E104: 5.570 | G104: as Si | I104: # H4SiO4 (=SiO2:2H2O)
C105: Ca | E105: 41.800 | G105: as Ca | I105: # Ca+2
C106: Mg | E106: 3.980 | G106: as Mg | I106: # Mg+2
C107: Na | E107: 11.400 | G107: as Na | I107: # Na+
C108: K | E108: 1.060 | G108: as K | I108: # K+
C109: Mn | E109: 0.014 | G109: as Mn | I109: # Mn(+4): MnO2 (Pyrolusite)
C110: Alkalinity | E110: 109.000 | G110: as HCO3 | I110: # HCO3-
C111: Cl | E111: 19.000 | G111: as Cl | I111: # Cl-
C112: N(+5) | E112: 5.190 | G112: as NO3 | I112: # NO3-
C113: S(+6) | E113: 22.000 | G113: as SO4 | I113: # SO4-2
C114: F | E114: 0.080 | G114: as F | I114: # F-
C115: Br | E115: 0.000 | G115: as Br | I115: # Br-
C116: P | E116: 0.210 | G116: as PO4 | I116: # HPO4-2 H2PO4-
C117: Al | E117: 3.800 | F117: ug/L | G117: as Al | I117: # Al(OH)4- Al(OH)3
C118: As | E118: 1.150 | F118: ug/L | G118: as As | I118: # As(+5): HAsO4-2 H2AsO4-
C119: Ba | E119: 11.700 | F119: ug/L | G119: as Ba | I119: # Ba+2
C120: B | E120: 11.800 | F120: ug/L | G120: as B | I120: # H3BO3
C121: Cr | E121: 0.669 | F121: ug/L | G121: as Cr | I121: # Cr(+6): CrO4-2
C122: Li | E122: 0.000 | F122: ug/L | G122: as Li | I122: # Li+
C123: Sr | E123: 0.000 | F123: ug/L | G123: as Sr | I123: # Sr+2
C124: water | E124: 1.0 | I124: # PHREEQC default | L124: 1 kg water
C125: pressure | E125: 1.0 | I125: # PHREEQC default | L125: 1 atm
C126: density | E126: 1.0 | F126: calculate | I126: # PHREEQC default | L126: 1 kg/L | N126: calculute = density is calculated by PHREEQC
C127: pe | E127: 4.0 | I127: # PHREEQC default
C128: redox | E128: O(-2)/O(0) | I128: # always some O2, to prevent uncontrolled redox reactions
C129: Ntg | E129: 1 Ntg(g) -0.1079 | I129: # SI = log(pa) | N129: pN2 = | O129: 0,7800
C130: END | D130: # Simulation | F130: 1
A131: -----
A132: TITLE
A133: -----
B135: Initial solution
A137: -------------------------------------------
A138: Beginning of initial solution calculations.
A139: -------------------------------------------
A141: Initial solution 1.
A143: -----------------------------Solution composition------------------------------
B145: Elements Molality Moles
B147: Al 1.409e-007 1.409e-007
B148: Alkalinity 1.787e-003 1.787e-003
B149: As 1.536e-008 1.536e-008
B150: B 1.092e-006 1.092e-006
B151: Ba 8.524e-008 8.524e-008
B152: Ca 1.043e-003 1.043e-003
B153: Cl 5.362e-004 5.362e-004
B154: Cr 1.287e-008 1.287e-008
B155: F 4.213e-006 4.213e-006
B156: K 2.712e-005 2.712e-005
B157: Mg 1.638e-004 1.638e-004
B158: Mn 2.549e-007 2.549e-007
B159: N(5) 8.374e-005 8.374e-005
B160: Na 4.961e-004 4.961e-004
B161: Ntg 6.523e-004 6.523e-004 Equilibrium with Ntg(g)
B162: O(0) 7.129e-004 7.129e-004
B163: P 2.212e-006 2.212e-006
B164: S(6) 2.291e-004 2.291e-004
B165: Si 1.984e-004 1.984e-004
B166: Uvab 5.002e-007 5.002e-007
A168: ----------------------------Description of solution----------------------------
A170: pH = 7.990
A171: pe = 4.000
A172: Specific Conductance (ÂµS/cm, 11Â°C) = 218
A173: Density (g/cmÂ³) = 0.99980 (Iterated)
A174: Volume (L) = 1.00046
A175: Viscosity (mPa s) = 1.27464
A176: Activity of water = 1.000
A177: Ionic strength (mol/kgw) = 4.265e-003
A178: Mass of water (kg) = 1.000e+000
A179: Total carbon (mol/kg) = 1.817e-003
A180: Total CO2 (mol/kg) = 1.817e-003
A181: Temperature (Â°C) = 10.90
A182: Electrical balance (eq) = 6.695e-005
A183: Percent error, 100*(Cat-|An|)/(Cat+|An|) = 1.17
A184: Iterations = 9 (27 overall)
A185: Total H = 1.110211e+002
A186: Total O = 5.551739e+001
A188: ---------------------------------Redox couples---------------------------------
B190: Redox couple pe Eh (volts)
B192: O(-2)/O(0) 13.9281 0.7850
A194: ----------------------------Distribution of species----------------------------
A196: Log Log Log mole V
A197: Species Molality Activity Molality Activity Gamma cmÂ³/mol
A199: OH- 3.338e-007 3.113e-007 -6.477 -6.507 -0.030 -4.90
A200: H+ 1.090e-008 1.023e-008 -7.963 -7.990 -0.027 0.00
A201: H2O 5.551e+001 9.999e-001 1.744 -0.000 0.000 18.02
A202: Al 1.409e-007
A203: Al(OH)4- 1.399e-007 1.307e-007 -6.854 -6.884 -0.030 (0)
A204: Al(OH)3 8.084e-010 8.092e-010 -9.092 -9.092 0.000 (0)
A205: Al(OH)2+ 1.886e-010 1.764e-010 -9.724 -9.754 -0.029 (0)
A206: AlOH+2 1.152e-012 8.801e-013 -11.939 -12.055 -0.117 -27.14
A207: AlF2+ 1.617e-013 1.512e-013 -12.791 -12.821 -0.029 (0)
A208: AlF+2 1.092e-013 8.342e-014 -12.962 -13.079 -0.117 (0)
A209: AlF3 7.313e-015 7.320e-015 -14.136 -14.135 0.000 (0)
A210: Al+3 4.112e-015 2.334e-015 -14.386 -14.632 -0.246 -41.10
A211: AlSO4+ 1.064e-015 9.933e-016 -14.973 -15.003 -0.030 (0)
A212: AlF4- 1.215e-017 1.134e-017 -16.916 -16.945 -0.030 (0)
A213: Al(SO4)2- 5.118e-018 4.780e-018 -17.291 -17.321 -0.030 (0)
A214: AlHSO4+2 1.078e-024 8.180e-025 -23.968 -24.087 -0.120 (0)
A215: As 1.536e-008
... 3736 more rows

Sheet Output
A1: sim | B1: state | C1: soln | D1: step | E1: pH | F1: pe | G1: temp(C) | H1: Alk(eq/kgw) | I1: C(mol/kgw) | J1: C(4)(mol/kgw) | K1: C(-4)(mol/kgw) | L1: Ca(mol/kgw) | M1: Mg(mol/kgw) | N1: Fe(mol/kgw) | O1: Fe(2)(mol/kgw) | P1: Fe(3)(mol/kgw) | Q1: Mn(mol/kgw) | R1: Mn(2)(mol/kgw) | S1: Mn(3)(mol/kgw) | T1: S(mol/kgw) | U1: S(6)(mol/kgw) | V1: S(-2)(mol/kgw) | W1: P(mol/kgw) | X1: Na(mol/kgw) | Y1: Cl(mol/kgw) | Z1: m_O2(mol/kgw) | AA1: m_CO2(mol/kgw) | AB1: m_HCO3-(mol/kgw) | AC1: m_CO3-2(mol/kgw) | AD1: m_CH4(mol/kgw) | AE1: m_Ca+2(mol/kgw) | AF1: m_CaHCO3+(mol/kgw) | AG1: m_CaCO3(mol/kgw) | AH1: m_CaSO4(mol/kgw) | AI1: m_Mg+2(mol/kgw) | AJ1: m_MgHCO3+(mol/kgw) | AK1: m_MgCO3(mol/kgw) | AL1: m_MgSO4(mol/kgw) | AM1: m_SO4-2(mol/kgw) | AN1: m_H+(mol/kgw) | AO1: m_OH-(mol/kgw) | AP1: si_Calcite | AQ1: si_Aragonite | AR1: si_Gypsum | AS1: si_Anhydrite | AT1: si_Dolomite | AU1: si_Hydroxyapatite | AV1: si_Pyrite | AW1: si_Siderite | AX1: si_Hematite | AY1: si_Rhodochrosite | AZ1: si_Vivianite | BA1: si_O2(g) | BB1: si_CO2(g) | BC1: si_H2O(g) | BD1: si_CH4(g) | BE1: si_H2S(g) | BF1: rho(kg/L) | BG1: kgw | BH1: vol(L) | BI1: kgw/L | BJ1: TDS(mg/L) | BK1: Charge_Err% | BL1: Charge_Bal | BM1: Cation | BN1: Anion | BO1: Ion_Str | BP1: EC(mS/m) | BQ1: EC20(mS/m) | BR1: EC25(mS/m) | BS1: pO2 | BT1: pNtg | BU1: pCO2 | BV1: pH2O | BW1: CO2T | BX1: HCO3T | BY1: CO3T | BZ1: CCPP | CA1: Desc | CB1: Title
A2: 1 | B2: i_soln | C2: 1 | D2: -99 | E2: 7.99 | F2: 4 | G2: 10.9 | H2: 0.00178723635 | I2: 0.001816895797 | J2: 0.001816895797 | K2: 0 | L2: 0.001043444766 | M2: 0.0001638274498 | N2: 0 | O2: 0 | P2: 0 | Q2: 2.54949647e-07 | R2: 2.54949647e-07 | S2: 7.161868977e-20 | T2: 0.0002291381527 | U2: 0.0002291381527 | V2: 0 | W2: 2.212239187e-06 | X2: 0.0004960952906 | Y2: 0.0005362120701 | Z2: 0.0003564357376 | AA2: 4.776700377e-05 | AB2: 0.001753092709 | AC2: 6.994557668e-06 | AD2: 0 | AE2: 0.001026165758 | AF2: 4.551894335e-12 | AG2: 5.755493946e-06 | AH2: 1.107342511e-05 | AI2: 0.0001572626232 | AJ2: 2.376906402e-06 | AK2: 4.943932348e-07 | AL2: 3.56216297e-06 | AM2: 0.0002138250402 | AN2: 1.089727078e-08 | AO2: 3.337561293e-07 | AP2: 0.03597504012 | AQ2: -0.1184458717 | AR2: -2.380532332 | AS2: -2.797198216 | AT2: -0.6791948396 | AU2: 0.6849279096 | AV2: -999.999 | AW2: -999.999 | AX2: -999.999 | AY2: -1.064248911 | AZ2: -999.999 | BA2: -0.6730878189 | BB2: -3.037812736 | BC2: -1.88479329 | BD2: -999.999 | BE2: -999.999 | BF2: 0.9998049231 | BG2: 1 | BH2: 1.000458836 | BI2: 0.9995413744 | BJ2: 263.5486534 | BK2: 1.170962133 | BL2: 6.694581293e-05 | BM2: 0.002892054368 | BN2: 0.002825108555 | BO2: 0.004264575425 | BP2: 21.8801068 | BQ2: 27.34186775 | BR2: 30.51352441 | BS2: 0 | BT2: 0.7800096937 | BU2: 0 | BV2: 0 | BW2: 4.776703678e-05 | BX2: 0.001755826986 | BY2: 1.330177468e-05 | BZ2: 0 | CB2: Initial solution
A3: 2 | B3: react | C3: 1 | D3: 1 | E3: 7.99 | F3: 13.92808324 | G3: 10.9 | H3: 0.00178723635 | I3: 0.001816895797 | J3: 0.001816895797 | K3: 0 | L3: 0.001043444766 | M3: 0.0001638274498 | N3: 0 | O3: 0 | P3: 0 | Q3: 2.54949647e-07 | R3: 2.54949647e-07 | S3: 7.161868976e-20 | T3: 0.0002291381527 | U3: 0.0002291381527 | V3: 0 | W3: 2.212239187e-06 | X3: 0.0004960952906 | Y3: 0.0005362120701 | Z3: 0.0003564357376 | AA3: 4.776700377e-05 | AB3: 0.001753092709 | AC3: 6.994557668e-06 | AD3: 0 | AE3: 0.001026165758 | AF3: 4.551894335e-12 | AG3: 5.755493946e-06 | AH3: 1.107342511e-05 | AI3: 0.0001572626232 | AJ3: 2.376906402e-06 | AK3: 4.943932348e-07 | AL3: 3.56216297e-06 | AM3: 0.0002138250402 | AN3: 1.089727078e-08 | AO3: 3.337561293e-07 | AP3: 0.03597504012 | AQ3: -0.1184458717 | AR3: -2.380532332 | AS3: -2.797198216 | AT3: -0.6791948396 | AU3: 0.6849279096 | AV3: -999.999 | AW3: -999.999 | AX3: -999.999 | AY3: -1.064248911 | AZ3: -999.999 | BA3: -0.6730878189 | BB3: -3.037812736 | BC3: -1.88479329 | BD3: -150.660925 | BE3: -151.3018564 | BF3: 0.9998049231 | BG3: 1 | BH3: 1.000458836 | BI3: 0.9995413744 | BJ3: 263.5486534 | BK3: 1.170962133 | BL3: 6.694581293e-05 | BM3: 0.002892054368 | BN3: 0.002825108555 | BO3: 0.004264575425 | BP3: 21.8801068 | BQ3: 27.34186775 | BR3: 30.51352441 | BS3: 0 | BT3: 0 | BU3: 0 | BV3: 0 | BW3: 4.776703678e-05 | BX3: 0.001755826986 | BY3: 1.330177468e-05 | BZ3: 0 | CB3: Final calculation
A4: 3 | B4: react | C4: 1 | D4: 1 | E4: 7.99 | F4: 13.92808324 | G4: 10.9 | H4: 0.00178723635 | I4: 0.001816895797 | J4: 0.001816895797 | K4: 0 | L4: 0.001043444766 | M4: 0.0001638274498 | N4: 0 | O4: 0 | P4: 0 | Q4: 2.54949647e-07 | R4: 2.54949647e-07 | S4: 7.161868976e-20 | T4: 0.0002291381527 | U4: 0.0002291381527 | V4: 0 | W4: 2.212239187e-06 | X4: 0.0004960952906 | Y4: 0.0005362120701 | Z4: 0.0003564357376 | AA4: 4.776700377e-05 | AB4: 0.001753092709 | AC4: 6.994557668e-06 | AD4: 0 | AE4: 0.001026165758 | AF4: 4.551894335e-12 | AG4: 5.755493946e-06 | AH4: 1.107342511e-05 | AI4: 0.0001572626232 | AJ4: 2.376906402e-06 | AK4: 4.943932348e-07 | AL4: 3.56216297e-06 | AM4: 0.0002138250402 | AN4: 1.089727078e-08 | AO4: 3.337561293e-07 | AP4: 0.03597504012 | AQ4: -0.1184458717 | AR4: -2.380532332 | AS4: -2.797198216 | AT4: -0.6791948396 | AU4: 0.6849279096 | AV4: -999.999 | AW4: -999.999 | AX4: -999.999 | AY4: -1.064248911 | AZ4: -999.999 | BA4: -0.6730878189 | BB4: -3.037812736 | BC4: -1.88479329 | BD4: -150.660925 | BE4: -151.3018564 | BF4: 0.9998049231 | BG4: 1 | BH4: 1.000458836 | BI4: 0.9995413744 | BJ4: 263.5486534 | BK4: 1.170962133 | BL4: 6.694581293e-05 | BM4: 0.002892054368 | BN4: 0.002825108555 | BO4: 0.004264575425 | BP4: 21.8801068 | BQ4: 27.34186775 | BR4: 30.51352441 | BS4: 0 | BT4: 0 | BU4: 0 | BV4: 0 | BW4: 4.776703678e-05 | BX4: 0.001755826986 | BY4: 1.330177468e-05 | BZ4: 0 | CB4: Simulation for calculating pH at field temperature (real solution 1)
A5: 4 | B5: react | C5: 1 | D5: 1 | E5: 7.860390865 | F5: 12.79337081 | G5: 25 | H5: 0.001787236274 | I5: 0.00181689572 | J5: 0.00181689572 | K5: 0 | L5: 0.001043444722 | M5: 0.0001638274428 | N5: 0 | O5: 0 | P5: 0 | Q5: 2.549496361e-07 | R5: 2.549496361e-07 | S5: 4.548864035e-20 | T5: 0.0002291381429 | U5: 0.0002291381429 | V5: 0 | W5: 2.212239093e-06 | X5: 0.0004960952695 | Y5: 0.0005362120473 | Z5: 0.0003564357224 | AA5: 5.059752966e-05 | AB5: 0.001748250167 | AC5: 7.301306877e-06 | AD5: 0 | AE5: 0.001018786521 | AF5: 1.185954375e-10 | AG5: 7.214122298e-06 | AH5: 1.691697336e-05 | AI5: 0.0001557285963 | AJ5: 2.433010816e-06 | AK5: 6.28260726e-07 | AL5: 4.86107206e-06 | AM5: 0.0002066067159 | AN5: 1.470391078e-08 | AO5: 7.878872338e-07 | AP5: 0.1131529967 | AQ5: -0.03061685072 | AR5: -2.36739484 | AS5: -2.601849331 | AT5: -0.4637465852 | AU5: 1.332920804 | AV5: -999.999 | AW5: -999.999 | AX5: -999.999 | AY5: -1.001450821 | AZ5: -999.999 | BA5: -0.5552368108 | BB5: -2.827425208 | BC5: -1.502864513 | BD5: -142.3334561 | BE5: -143.169466 | BF5: 0.9972282473 | BG5: 1.000000042 | BH5: 1.003043859 | BI5: 0.9969654202 | BJ5: 262.8270829 | BK5: 1.178329708 | BL5: 6.694581293e-05 | BM5: 0.0028741808 | BN5: 0.00280723499 | BO5: 0.004230750249 | BP5: 30.98822342 | BQ5: 27.77824866 | BR5: 31.0005255 | BS5: 0 | BT5: 0 | BU5: 0 | BV5: 0 | BW5: 5.059761295e-05 | BX5: 0.001751095602 | BY5: 1.520250537e-05 | BZ5: 0 | CA5: Solution after simulation 3. | CB5: Simulation for calculating Electical conductivity at 25C
A6: 5 | B6: react | C6: 1 | D6: 1 | E6: 7.957404869 | F6: 13.960678 | G6: 10.9 | H6: 0.001777778298 | I6: 0.001812166712 | J6: 0.001812166712 | K6: 0 | L6: 0.001038715731 | M6: 0.0001638274393 | N6: 0 | O6: 0 | P6: 0 | Q6: 2.549496307e-07 | R6: 2.549496307e-07 | S6: 7.853259338e-20 | T6: 0.000229138138 | U6: 0.000229138138 | V6: 0 | W6: 2.212239046e-06 | X6: 0.0004960952589 | Y6: 0.0005362120359 | Z6: 0.0003564357148 | AA6: 5.128327052e-05 | AB6: 0.001745889084 | AC6: 6.460355546e-06 | AD6: 0 | AE6: 0.001021939075 | AF6: 4.516198722e-12 | AG6: 5.297962342e-06 | AH6: 1.103767768e-05 | AI6: 0.0001573061363 | AJ6: 2.368639282e-06 | AK6: 4.570965032e-07 | AL6: 3.566322912e-06 | AM6: 0.0002138562359 | AN6: 1.174566868e-08 | AO6: 3.095928946e-07 | AP6: 0 | AQ6: -0.1544209118 | AR6: -2.381937047 | AS6: -2.798603062 | AT6: -0.7492358058 | AU6: 0.5411474185 | AV6: -999.999 | AW6: -999.999 | AX6: -999.999 | AY6: -1.090847306 | AZ6: -999.999 | BA6: -0.6730891523 | BB6: -3.006965884 | BC6: -1.884793224 | BD6: -150.6300754 | BE6: -151.2364367 | BF6: 0.9998043426 | BG6: 1.000000064 | BH6: 1.000458943 | BI6: 0.9995413308 | BJ6: 263.0117504 | BK6: 1.174399862 | BL6: 6.694581293e-05 | BM6: 0.002883686482 | BN6: 0.002816740673 | BO6: 0.004251518017 | BP6: 21.82350457 | BQ6: 27.27113635 | BR6: 30.43458817 | BS6: 0 | BT6: 0 | BU6: 0 | BV6: 0 | BW6: 5.128330857e-05 | BX6: 0.001748614067 | BY6: 1.226933639e-05 | BZ6: 4.728969025e-06 | CA6: Solution after simulation 3. | CB6: Simulation for calculating CalciumCarbonate Precipitation Potential
A7: 6 | B7: react | C7: 1 | D7: 1 | E7: 7.923467852 | F7: 13.99461546 | G7: 10.9 | H7: 0.001777236101 | I7: 0.001816895543 | J7: 0.001816895543 | K7: 0 | L7: 0.00104344462 | M7: 0.0001638274269 | N7: 0 | O7: 0 | P7: 0 | Q7: 2.549496113e-07 | R7: 2.549496113e-07 | S7: 8.631300001e-20 | T7: 0.0002291381206 | U7: 0.0002291381206 | V7: 0 | W7: 2.212238877e-06 | X7: 0.0004960952211 | Y7: 0.0005462119936 | Z7: 0.0003564356876 | AA7: 5.549026955e-05 | AB7: 0.0017472977 | AC7: 5.981444652e-06 | AD7: 0 | AE7: 0.001027003758 | AF7: 4.540328717e-12 | AG7: 4.925385291e-06 | AH7: 1.108091166e-05 | AI7: 0.0001573439714 | AJ7: 2.370162757e-06 | AK7: 4.229613423e-07 | AL7: 3.563506732e-06 | AM7: 0.0002138162012 | AN7: 1.27014863e-08 | AO7: 2.863536645e-07 | AP7: -0.03166717905 | AQ7: -0.1860880909 | AR7: -2.380238896 | AS7: -2.796904619 | AT7: -0.8146087292 | AU7: 0.405888963 | AV7: -999.999 | AW7: -999.999 | AX7: -999.999 | AY7: -1.117748594 | AZ7: -999.999 | BA7: -0.6730877065 | BB7: -2.972723788 | BC7: -1.88479337 | BD7: -150.5958365 | BE7: -151.168832 | BF7: 0.9998048332 | BG7: 1.00000014 | BH7: 1.000459291 | BI7: 0.9995410602 | BJ7: 263.7729513 | BK7: 1.17020687 | BL7: 6.694581293e-05 | BM7: 0.00289389892 | BN7: 0.002826953116 | BO7: 0.004266307065 | BP7: 21.9100949 | BQ7: 27.37934155 | BR7: 30.55534516 | BS7: 0 | BT7: 0 | BU7: 0 | BV7: 0 | BW7: 5.54903141e-05 | BX7: 0.001750024756 | BY7: 1.138047255e-05 | BZ7: 0 | CA7: Solution after simulation 3. | CB7: Simulation for calculating Buffer Capacity (dpH after 0.01 mmol/kgw HCl) and pH stability (dpH after 0.1 mmol/kgw HCl)
A8: 6 | B8: react | C8: 1 | D8: 2 | E8: 7.512668016 | F8: 14.40541564 | G8: 10.9 | H8: 0.001687233635 | I8: 0.001816892874 | J8: 0.001816892874 | K8: 0 | L8: 0.001043443088 | M8: 0.0001638271862 | N8: 0 | O8: 0 | P8: 0 | Q8: 2.549492368e-07 | R8: 2.549492368e-07 | S8: 2.550165977e-19 | T8: 0.000229137784 | U8: 0.000229137784 | V8: 0 | W8: 2.212235628e-06 | X8: 0.0004960944924 | Y8: 0.0006362110465 | Z8: 0.0003564351641 | AA8: 0.0001368291283 | AB8: 0.001673203423 | AC8: 2.224584504e-06 | AD8: 0 | AE8: 0.001030153099 | AF8: 4.360309198e-12 | AG8: 1.836749393e-06 | AH8: 1.110887548e-05 | AI8: 0.0001577214853 | AJ8: 2.274691738e-06 | AK8: 1.576243016e-07 | AL8: 3.570129479e-06 | AM8: 0.0002137811901 | AN8: 3.27093648e-08 | AO8: 1.112049272e-07 | AP8: -0.460056823 | AQ8: -0.6144777348 | AR8: -2.379145375 | AS8: -2.795809719 | AT8: -1.671675213 | AU8: -1.425173738 | AV8: -999.999 | AW8: -999.999 | AX8: -999.999 | AY8: -1.487854317 | AZ8: -999.999 | BA8: -0.6730876842 | BB8: -2.580761626 | BC8: -1.88479406 | BD8: -150.2038757 | BE8: -150.347386 | BF8: 0.9998039746 | BG8: 1.000001609 | BH8: 1.000463432 | BI8: 0.9995383911 | BJ8: 265.5834347 | BK8: 1.167331505 | BL8: 6.694581293e-05 | BM8: 0.002900940447 | BN8: 0.002833994742 | BO8: 0.004272909522 | BP8: 22.13746111 | BQ8: 27.66346342 | BR8: 30.87242518 | BS8: 0 | BT8: 0 | BU8: 0 | BV8: 0 | BW8: 0.0001368293992 | BX8: 0.001675822909 | BY8: 4.240566216e-06 | BZ8: 0 | CA8: Solution after simulation 3. | CB8: Simulation for calculating Buffer Capacity (dpH after 0.01 mmol/kgw HCl) and pH stability (dpH after 0.1 mmol/kgw HCl)
A9: 7 | B9: react | C9: 1 | D9: 1 | E9: 7.69 | F9: 14.22808351 | G9: 10.9 | H9: 0.001733702312 | I9: 0.001816894304 | J9: 0.001816894304 | K9: 0 | L9: 0.001043443909 | M9: 0.0001638273152 | N9: 0 | O9: 0 | P9: 0 | Q9: 2.549494374e-07 | R9: 2.549494374e-07 | S9: 1.617386514e-19 | T9: 0.0002291379644 | U9: 0.0002291379644 | V9: 0 | W9: 2.212237369e-06 | X9: 0.0004960948829 | Y9: 0.0005897441981 | Z9: 0.0003564354446 | AA9: 9.320429431e-05 | AB9: 0.001714476991 | AC9: 3.428813203e-06 | AD9: 0 | AE9: 0.00102913217 | AF9: 4.463714328e-12 | AG9: 2.828575119e-06 | AH9: 1.109986347e-05 | AI9: 0.0001575754316 | AJ9: 2.328781868e-06 | AK9: 2.427552683e-07 | AL9: 3.567463344e-06 | AM9: 0.0002137931355 | AN9: 2.174374272e-08 | AO9: 1.672819951e-07 | AP9: -0.2725392281 | AQ9: -0.4269601399 | AR9: -2.379497231 | AS9: -2.796162277 | AT9: -1.296612347 | AU9: -0.6098998115 | AV9: -999.999 | AW9: -999.999 | AX9: -999.999 | AY9: -1.32030285 | AZ9: -999.999 | BA9: -0.6730875594 | BB9: -2.747504407 | BC9: -1.884793708 | BD9: -150.370618 | BE9: -150.7019988 | BF9: 0.9998044248 | BG9: 1.000000822 | BH9: 1.000461287 | BI9: 0.9995397474 | BJ9: 264.6773586 | BK9: 1.168276732 | BL9: 6.694581293e-05 | BM9: 0.002898622723 | BN9: 0.002831676965 | BO9: 0.004270739457 | BP9: 22.02593921 | BQ9: 27.52410317 | BR9: 30.71689914 | BS9: 0 | BT9: 0 | BU9: 0 | BV9: 0 | BW9: 9.320441999e-05 | BX9: 0.001717157957 | BY9: 6.531927536e-06 | BZ9: 0 | CA9: Solution after simulation 3. | CB9: Simulation for calculating Buffer Capacity (max. H+ for dpH < -0.30)
A10: 8 | B10: react | C10: 1 | D10: 1 | E10: 7.369982728 | F10: 10.66237941 | G10: 60 | H10: 0.001635159753 | I10: 0.001740856265 | J10: 0.001740856265 | K10: 0 | L10: 0.0009674062676 | M10: 0.0001638272309 | N10: 0 | O10: 0 | P10: 0 | Q10: 2.549493063e-07 | R10: 2.549493063e-07 | S10: 3.779827972e-20 | T10: 0.0002291378465 | U10: 0.0002291378465 | V10: 0 | W10: 2.21223623e-06 | X10: 0.0004960946276 | Y10: 0.0005362113535 | Z10: 0.0003564352612 | AA10: 0.0001241986009 | AB10: 0.001601652108 | AC10: 3.33069082e-06 | AD10: 0 | AE10: 0.0009196428467 | AF10: 4.521519091e-08 | AG10: 7.781419467e-06 | AH10: 3.934142176e-05 | AI10: 0.00015047762 | AJ10: 2.78130684e-06 | AK10: 4.6669994e-07 | AL10: 9.736522379e-06 | AM10: 0.0001791173073 | AN10: 4.556918391e-08 | AO10: 2.434331101e-06 | AP10: 4.440892099e-16 | AQ10: -0.1212276152 | AR10: -2.241904138 | AS10: -2.126340121 | AT10: -0.3440113528 | AU10: 1.539610183 | AV10: -999.999 | AW10: -999.999 | AX10: -999.999 | AY10: -1.179235749 | AZ10: -999.999 | BA10: -0.3831970532 | BB10: -2.12166707 | BC10: -0.7086269361 | BD10: -125.2373466 | BE10: -125.9315152 | BF10: 0.9833610067 | BG10: 1.000001336 | BH10: 1.017180926 | BI10: 0.9831105862 | BJ10: 250.4205246 | BK10: 1.271657159 | BL10: 6.694581293e-05 | BM10: 0.002665696609 | BN10: 0.002598750885 | BO10: 0.00388610584 | BP10: 53.75090992 | BQ10: 26.66233815 | BR10: 29.75516937 | BS10: 0 | BT10: 0 | BU10: 0 | BV10: 0 | BW10: 0.0001242003698 | BX10: 0.001605046704 | BY10: 1.160919156e-05 | BZ10: 7.603710439e-05 | CA10: Solution after simulation 3. | CB10: Simulation for calculating CalciumCarbonate Precipitation Potential at 60, 90 and 100 C
A11: 8 | B11: react | C11: 1 | D11: 2 | E11: 7.128486238 | F11: 9.14934739 | G11: 90 | H11: 0.00142849664 | I11: 0.00163752301 | J11: 0.00163752301 | K11: 0 | L11: 0.0008640744355 | M11: 0.0001638269294 | N11: 0 | O11: 0 | P11: 0 | Q11: 2.549488371e-07 | R11: 2.549488371e-07 | S11: 3.086464949e-20 | T11: 0.0002291374248 | U11: 0.0002291374248 | V11: 0 | W11: 2.21223216e-06 | X11: 0.0004960937147 | Y11: 0.0005362103668 | Z11: 0.0003564346053 | AA11: 0.0002301281398 | AB11: 0.001391647167 | AC11: 1.697948633e-06 | AD11: 0 | AE11: 0.0007878630225 | AF11: 1.139377653e-06 | AG11: 8.531969351e-06 | AH11: 6.591218167e-05 | AI11: 0.0001434260694 | AJ11: 3.27335217e-06 | AK11: 3.569217982e-07 | AL11: 1.583558214e-05 | AM11: 0.0001463223696 | AN11: 7.954229308e-08 | AO11: 5.697676473e-06 | AP11: -4.440892099e-16 | AQ11: -0.1053641195 | AR11: -2.068993912 | AS11: -1.736994568 | AT11: 0.07407504788 | AU11: 1.928572495 | AV11: -999.999 | AW11: -999.999 | AX11: -999.999 | AY11: -1.372854916 | AZ11: -999.999 | BA11: -0.3343728766 | BB11: -1.695117472 | BC11: -0.1641811453 | BD11: -114.2970969 | BE11: -114.7062988 | BF11: 0.9654648881 | BG11: 1.000003177 | BH11: 1.036024955 | BI11: 0.9652307809 | BJ11: 234.1071792 | BK11: 1.420454035 | BL11: 6.694581293e-05 | BM11: 0.002389958776 | BN11: 0.002323013176 | BO11: 0.003436935966 | BP11: 69.26911602 | BQ11: 23.99454943 | BR11: 26.77791717 | BS11: 0 | BT11: 0 | BU11: 0 | BV11: 0 | BW11: 0.0002301373132 | BX11: 0.001396782523 | BY11: 1.060317317e-05 | BZ11: 0.0001793670163 | CA11: Solution after simulation 3. | CB11: Simulation for calculating CalciumCarbonate Precipitation Potential at 60, 90 and 100 C
A12: 8 | B12: react | C12: 1 | D12: 3 | E12: 7.066014695 | F12: 8.71326601 | G12: 100 | H12: 0.001336161497 | I12: 0.001591354688 | J12: 0.001591354688 | K12: 0 | L12: 0.0008179067423 | M12: 0.0001638267962 | N12: 0 | O12: 0 | P12: 0 | Q12: 2.549486298e-07 | R12: 2.549486298e-07 | S12: 2.979206887e-20 | T12: 0.0002291372385 | U12: 0.0002291372385 | V12: 0 | W12: 2.212230361e-06 | X12: 0.0004960933114 | Y12: 0.0005362099308 | Z12: 0.0003564343157 | AA12: 0.0002771740693 | AB12: 0.0012979277 | AC12: 1.308898351e-06 | AD12: 0 | AE12: 0.0007319859775 | AF12: 2.413125907e-06 | AG12: 7.989994284e-06 | AH12: 7.48898258e-05 | AI12: 0.0001404825532 | AJ12: 3.430120906e-06 | AK12: 3.143258141e-07 | AL12: 1.827479452e-05 | AM12: 0.0001348723601 | AN12: 9.185150536e-08 | AO12: 7.239154603e-06 | AP12: -4.440892099e-16 | AQ12: -0.1006431194 | AR12: -2.006325358 | AS12: -1.61469058 | AT12: 0.2302426559 | AU12: 2.034706496 | AV12: -999.999 | AW12: -999.999 | AX12: -999.999 | AY12: -1.458245989 | AZ12: -999.999 | BA12: -0.3330698996 | BB12: -1.577821554 | BC12: -0.005035236097 | BD12: -111.29012 | BE12: -111.5677273 | BF12: 0.9585007507 | BG12: 1.00000399 | BH12: 1.043547536 | BI12: 0.9582735381 | BJ12: 227.2125702 | BK12: 1.493920949 | BL12: 6.694581293e-05 | BM12: 0.002274071443 | BN12: 0.002207125897 | BO12: 0.003250347148 | BP12: 72.60669389 | BQ12: 22.73309855 | BR12: 25.37013798 | BS12: 0 | BT12: 0 | BU12: 0 | BV12: 0 | BW12: 0.0002771877561 | BX12: 0.001304540967 | BY12: 9.625964063e-06 | BZ12: 0.0002255338611 | CA12: Solution after simulation 3. | CB12: Simulation for calculating CalciumCarbonate Precipitation Potential at 60, 90 and 100 C

Sheet Messages

Sheet Stimela
A1: # stimela.dat (version 3.9.0) | G1: (stimela version of phreeqc.dat)
A2: # under development by Peter de Moel (Omnisys) for Stimela platform at Delft University of Technology
A3: # based on: phreeqc.dat (file date 2026-01-23, in IPhreeqcCOM-3.9.0-17591-x64.msi)
A4: # | B4: from: https://github.com/phreeqc-dev/iphreeqccom/releases/tag/v3.9.0
A5: # Stimela is focussed on modelling for water and waste water treatment
A6: # Further info on using PHREEQC for water treatment, and PHREEQC in Excel can be found on https://ac4e.omnisys.nl/
A8: # list of modifications:
A9: # - added Amm (with master species AmmH+) as used in amm.dat for redox-uncoupled NH3 (for using Tony Appelo's input files)
A10: # - added [N-3] (with master species [N-3]H4+) as alternative for redox-uncoupled Amm (for readable chemical formula)
A11: # - added [Fe+2], [Mn+2] and [N+3] (with master species [Fe+2]+2 , [Mn+2]+2 and [N+3]O2-) for redox-uncoupled Fe+2, Mn+2 and NO2-
A12: # - added [C-4] and [S-2] (with master species [C-4]H4 and H2[S-2]) as alternatives for redox-uncoupled Mtg and Sg)
A13: # - added solid Vaterite (CaCO3) (included in Standard Methods 2330 - 2016)
A14: # - unchanged analytic for solid Calcite (phreeqc 3.7.0. introduced modified version, deviated from Standard Methods 2330 - 2016)
A15: # - modified values for element_gfw according to Abridged Standard Atomic Weights 2024 from CIAAW of IUPAC (https://www.ciaaw.org/abridged-atomic-weights.htm)
A16: # end of list of modifications
A18: # PHREEQC.DAT for calculating temperature and pressure dependence of reactions, and the specific conductance and viscosity of the solution. Based on:
A19: # diffusion coefficients and molal volumina of aqueous species, solubility and volume of minerals, and critical temperatures and pressures of gases in Peng-Robinson's EOS.
A20: # Details are given at the end of this file.
A22: SOLUTION_MASTER_SPECIES
A23: # | F23: Modified acc. CIAAW | I23: phreeqc.dat | K23: calculations
A24: #element species alk gfw_formula | F24: element_gfw | I24: # if modified
A25: #
A26: H H+ -1 H | F26: 1.0080 | I26: # 1.008 | K26: =_xlfn.NUMBERVALUE(F26,".") -> 1.008
A27: H(0) H2 0 H
A28: H(1) H+ -1 H
A29: E e- 1 0 | F29: 0
A30: O H2O 0 O | F30: 15.999 | I30: # 16 | K30: =_xlfn.NUMBERVALUE(F30,".") -> 15.999
A31: O(0) O2 0 O
A32: O(-2) H2O 0 0
A33: Ca Ca+2 0 Ca | F33: 40.078 | I33: # 40.08 | K33: =_xlfn.NUMBERVALUE(F33,".") -> 40.078
A34: Mg Mg+2 0 Mg | F34: 24.305 | I34: # 24.312
A35: Na Na+ 0 Na | F35: 22.990 | I35: # 22.9898
A36: K K+ 0 K | F36: 39.098 | I36: # 39.102
A37: Fe Fe+2 0 Fe | F37: 55.845 | I37: # 55.847 | K37: =_xlfn.NUMBERVALUE(F37,".") -> 55.845
A38: Fe(+2) Fe+2 0 Fe
A39: Fe(+3) Fe+3 -2 Fe
A40: Mn Mn+2 0 Mn | F40: 54.938 | K40: =_xlfn.NUMBERVALUE(F40,".") -> 54.938
A41: Mn(+2) Mn+2 0 Mn
A42: Mn(+3) Mn+3 0 Mn
A43: Al Al+3 0 Al | F43: 26.982 | I43: # 26.9815
A44: Ba Ba+2 0 Ba | F44: 137.33 | I44: # 137.34
A45: Sr Sr+2 0 Sr | F45: 87.62
A46: Si H4SiO4 0 SiO2 | F46: 28.085 | I46: # 28.0843
A47: Cl Cl- 0 Cl | F47: 35.45 | I47: # 35.453
A48: C CO3-2 2 HCO3 | F48: 12.011 | I48: # 12.0111 | K48: =_xlfn.NUMBERVALUE(F48,".") -> 12.011
A49: C(+4) CO3-2 2 HCO3
A50: C(-4) CH4 0 CH4
A51: Alkalinity CO3-2 1 Ca0.5(CO3)0.5 | F51: 50.043 | I51: # 50.05 | K51: =(K33+K48+K30*3)/2 -> 50.043
A52: S SO4-2 0 SO4 | F52: 32.06 | I52: # 32.064 | K52: =_xlfn.NUMBERVALUE(F52,".") -> 32.06
A53: S(6) SO4-2 0 SO4
A54: S(-2) HS- 1 S
A55: N NO3- 0 N | F55: 14.007 | I55: # 14.0067 | K55: =_xlfn.NUMBERVALUE(F55,".") -> 14.007
A56: N(+5) NO3- 0 N
A57: N(+3) NO2- 0 N
A58: N(0) N2 0 N
A59: N(-3) NH4+ 0 N | I59: # 14.0067
A60: # begin modification stimela.dat
A61: # added Amm definition (as redox-uncoupled NH3)
A62: Amm AmmH+ 0 AmmH | F62: 17.031 | I62: # 17.031 | K62: =K55+K26*3 -> 17.031
A63: # end modification stimela.dat
A64: B H3BO3 0 B | F64: 10.81
A65: P PO4-3 2 P | F65: 30.974 | I65: # 30.9738
A66: F F- 0 F | F66: 18.998 | I66: # 18.9984
A67: Li Li+ 0 Li | F67: 6.94 | I67: # 6.939
A68: Br Br- 0 Br | F68: 79.904
A69: Zn Zn+2 0 Zn | F69: 65.38 | I69: # 65.37
A70: Cd Cd+2 0 Cd | F70: 112.41 | I70: # 112.4
A71: Pb Pb+2 0 Pb | F71: 207.2 | I71: # 207.19
A72: Cu Cu+2 0 Cu | F72: 63.546
A73: Cu(+2) Cu+2 0 Cu
A74: Cu(+1) Cu+1 0 Cu
A75: # redox-uncoupled gases
A76: Hdg Hdg 0 Hdg 2.016 # H2 gas | F76: 2.016 | G76: # H2 gas | K76: =K26*2 -> 2.016
A77: Oxg Oxg 0 Oxg 32 # O2 gas | F77: 31.998 | G77: # O2 gas | I77: # 32 | K77: =K30*2 -> 31.998
A78: Mtg Mtg 0 Mtg 16.032 # CH4 gas | F78: 16.043 | G78: # CH4 gas | I78: # 16.032 | K78: =K48+K26*4 -> 16.043
A79: Sg H2Sg 0 H2Sg 32.064 # H2S gas | F79: 34.076 | G79: # H2S gas | I79: # 34.064 | K79: =K26*2+K52 -> 34.076
A80: Ntg Ntg 0 Ntg 28.0134 # N2 gas | F80: 28.014 | G80: # N2 gas | I80: # 28.0134 | K80: =K55*2 -> 28.014
A81: # begin modification stimela.dat
A82: # added redox-uncoupled (inert) elements: [Fe+2], [Mn+2] and [N+3]
A83: [Fe+2] [Fe+2]+2 0 Fe | F83: 55.845 | I83: # 55.847 | K83: =K37 -> 55.845
A84: [Mn+2] [Mn+2]+2 0 Mn | F84: 54.938 | K84: =K40 -> 54.938
A85: [N+3] [N+3]O2- 0 N | F85: 14.007 | I85: # 14.0067 | K85: =K55 -> 14.007
A86: # redox_uncoupled elements Amm (NH3), Mtg (CH4) and Sg (H2S) are not readable chemical formula
A87: # replaced with uniform notation for redox-uncoupled (inert) elements: [N-3], [C-4] and [S-2]
A88: [N-3] [N-3]H4+ 0 NH4 | F88: 14.007 | G88: # Amm = [N-3]H3 | I88: # 14.0067 | K88: =_xlfn.NUMBERVALUE(F88,".") -> 14.007
A89: [C-4] [C-4]H4 0 CH4 | F89: 12.011 | G89: # Mtg = [C-4]H4 | I89: # 12.0111 | K89: 12.011
A90: [S-2] H2[S-2] 0 H2S | F90: 32.06 | G90: # Sg = [S-2] | I90: # 32.064 | K90: 32.06
A91: # uniform notation omitted for Oxg (O2), Hdg (H2) and Ntg (N2), to limit modifications from phreeqc.dat
A92: # end modification stimela.dat
A94: SOLUTION_SPECIES
A95: H+ = H+
B96: -gamma 9 0
B97: -viscosity 9.35e-2 -8.31e-2 2.487e-2 4.49e-4 2.01e-2 1.57 # for viscosity parameters see ref. 4
B98: -dw 9.31e-9 838 6.96 -2.285 0.206 24.01 0
B99: # Dw(25 C) dw_T a a2 visc a3 a_v_dif
B100: # Dw(TK) = 9.31e-9 * exp(838 / TK - 838 / 298.15) * viscos_0_25 / viscos_0_tc
B101: # a = DH ion size (= 3.5 - 25), a2 = exponent (= 0 2.5), visc = viscosity exponent (= 0 2.5), a3 = switch [a3(H+) = 24.01 = new dw calculation from A.D. 2024], a_v_dif = exponent in (viscos_0_tc / viscos)^a_v_dif for tracer diffusion.
B103: # For SC, Dw(TK) *= (viscos_0_tc / viscos)^visc (visc = 0.206 for H+)
B104: # a3 > 5 or a3 = 0 or not defined ? ka = DH_B * a * (1 + (vm - v0))^a2 * mu^0.5, in Onsager-Falkenhagen eqn. (For H+, the reference ion, vm = v0 = 0, a *= (1 + mu)^a2.)
B105: # a3 = -10 ? ka = DH_B * a * mu^a2 (Define a3 = -10, not used in this database.) (a3 = 24.01 for H+, a flag.)
B106: # -3 < a3 < 4 ? ka = DH_B * a2 * mu^0.5 / (1 + mu^a3), Appelo, 2017: Dw(I) = Dw(TK) * exp(-a * DH_A * z * sqrt_mu / (1 + ka)) (Sr+2 in this database)
B108: # If a_v_dif <> 0, Dw(TK) *= (viscos_0_tc / viscos)^a_v_dif in TRANSPORT.
A110: e- = e-
A111: H2O = H2O
B112: -dw 2.299e-9 -254
B113: # H2O + 0.01e- = H2O-0.01; -log_k -9 # aids convergence
A114: Li+ = Li+
B115: -gamma 6 0 # The apparent volume parameters are defined in ref. 1 & 2
B116: -Vm -0.419 -0.069 13.16 -2.78 0.416 0 0.296 -12.4 -2.74e-3 1.26 # ref. 2 and Ellis, 1968, J. Chem. Soc. A, 1138
B117: -viscosity 0.162 -2.45e-2 3.73e-2 9.7e-4 8.1e-4 2.087 # < 10 M LiCl
B118: -dw 1.03e-9 -14 4.03 0.8341 1.679
A119: Na+ = Na+
B120: -gamma 4 0.075
B121: -gamma 4.08 0.082 # halite solubility
B122: -Vm 2.28 -4.38 -4.1 -0.586 0.09 4 0.3 52 -3.33e-3 0.566
B123: # -Vm 2.28 -4.38 -4.1 -0.586 0.09 4 0.3 52 -3.33e-3 0.45 # for densities (rho) when I > 3.
B124: -viscosity 0.1387 -8.66e-2 1.25e-2 1.45e-2 7.5e-3 1.062
B125: -dw 1.33e-9 75 3.627 0 0.7037
A126: K+ = K+
B127: -gamma 3.5 0.015
B128: -Vm 3.322 -1.473 6.534 -2.712 9.06e-2 3.5 0 29.7 0 1
B129: -viscosity 0.116 -0.191 1.52e-2 1.4e-2 2.59e-2 0.9028
B130: -dw 1.96e-9 254 3.484 0 0.1964
A131: Mg+2 = Mg+2
B132: -gamma 5.5 0.2
B133: -Vm -1.41 -8.6 11.13 -2.39 1.332 5.5 1.29 -32.9 -5.86e-3 1
B134: -viscosity 0.438 -0.2 0.2086 1.024e-3 8.12e-3 2.667
B135: -dw 0.705e-9 -28 5.543 0 1.047
A136: Ca+2 = Ca+2
B137: -gamma 5 0.165
B138: -Vm -0.3456 -7.252 6.149 -2.479 1.239 5 1.6 -57.1 -6.12e-3 1
B139: -viscosity 0.359 -0.158 4.2e-2 1.5e-3 8.04e-3 2.3 # ref. 4, CaCl2 < 6 M
B140: -dw 0.792e-9 34 5.411 0 1.046
A141: Sr+2 = Sr+2
B142: -gamma 5.26 0.121
B143: -Vm -5.6e-2 -10.15 9.90 -2.36 0.807 5.26 2.72 -82.7 -1.37e-2 0.956
B144: -viscosity 0.493 -0.255 2.3e-3 4.2e-3 -3.8e-3 1.762
B145: -dw 0.794e-9 18 0.681 2.069 0.965 0.271
A146: Ba+2 = Ba+2
B147: -gamma 7.1 0.0553 # Barite solubility in NaCl solutions
B148: -Vm 2.012 -10 0.772 -2.4 0.4076 5.18 2 38.5 -1.13e-2 0.585
B149: -viscosity 0.338 -0.227 1.39e-2 3.07e-2 0 0.768
B150: -dw 0.848e-9 174 10.53 0 3
A151: Fe+2 = Fe+2
B152: -gamma 6 0
B153: -Vm -0.3255 -9.687 1.536 -2.379 0.3033 6 -4.21e-2 39.7 0 1
B154: -dw 0.719e-9
A155: Mn+2 = Mn+2
B156: -gamma 6 0
B157: -Vm -1.1 -8.03 4.08 -2.45 1.4 6 8.07 0 -1.51e-2 0.118
B158: -dw 0.688e-9
A159: Al+3 = Al+3
B160: -gamma 9 0
B161: -Vm -2.28 -17.1 10.9 -2.07 2.87 9 0 0 5.5e-3 1 # ref. 2 and Barta and Hepler, 1986, Can. J.C. 64, 353
B162: -dw 0.559e-9
A163: H4SiO4 = H4SiO4
B164: -Vm 10.5 1.7 20 -2.7 0.1291 # supcrt 2*H2O in a1
B165: -dw 1.1e-9
A166: Cl- = Cl-
B167: -gamma 3.5 0.015
B168: -gamma 3.63 0.017 # cf. pitzer.dat
B169: -Vm 4.465 4.801 4.325 -2.847 1.748 0 -0.331 20.16 0 1
B170: -viscosity 0 0 0 0 0 0 1 # the reference solute
B171: -dw 2.033e-9 216 3.16 0.2071 0.7432
A172: CO3-2 = CO3-2
B173: -gamma 5.4 0
B174: -Vm 6.685 -7.727 -9 -2.238 3.904 1.395 3.696 14 -0.02 0.701
B175: -viscosity 3e-3 0.264 3.05e-2 1.1e-4 -1e-3 2.234 -1.434
B176: -dw 0.955e-9 -91 1.992 0.1595 0.4515
A177: SO4-2 = SO4-2
B178: -gamma 5.0 -0.04
B179: -Vm 5.36 10.69 33.566 -15.03 4.2582 25 0.341 153.8 1.089e-2 0.9224 # with Na2SO4 & sulfates' solubilities in NaCl
B180: -viscosity -0.387 0.5 1.772e-3 7.32e-3 1.19e-2 2.5 0.455
B181: -dw 1.07e-9 -64.6 15.1 1.12e-3 0.537
A182: NO3- = NO3-
B183: -gamma 3 0
B184: -Vm 6.32 6.78 0 -3.06 0.346 0 0.93 0 -0.012 1
B185: -viscosity 8.37e-2 -0.458 1.54e-2 0.34 1.79e-2 5.02e-2 0.7381
B186: -dw 1.9e-9 104 1.11
A187: # begin modification stimela.dat
A188: # added Amm definitions (from NO3- + 10 H+ + 8 e- = NH4+ + 3 H2O)
A189: AmmH+ = AmmH+
B190: -gamma 2.5 0
B191: -Vm 5.35 2.345 3.72 -2.88 1.55 2.5 -4.54 217 2.344e-2 0.569
B192: -viscosity 6.94e-2 -0.141 2.04e-2 9.4e-3 3.73e-2 0.898
B193: -dw 1.98e-9 203 1.47 2.644 6.81e-2
A194: # added [N-3]H4+, [N+3]O2-, [Fe+2]+2 and [Mn+2]+2
A195: [N-3]H4+ = [N-3]H4+
B196: -gamma 2.5 0
B197: -Vm 5.35 2.345 3.72 -2.88 1.55 2.5 -4.54 217 2.344e-2 0.569
B198: -viscosity 6.94e-2 -0.141 2.04e-2 9.4e-3 3.73e-2 0.898
B199: -dw 1.98e-9 203 1.47 2.644 6.81e-2
A200: [N+3]O2- = [N+3]O2-
B201: -gamma 3 0
B202: -Vm 5.5864 5.859 3.4472 -3.0212 1.1847 # supcrt
B203: -dw 1.91e-9
A204: [Fe+2]+2 = [Fe+2]+2
B205: -gamma 6 0
B206: -Vm -0.3255 -9.687 1.536 -2.379 0.3033 6 -4.21e-2 39.7 0 1
B207: -dw 0.719e-9
... 1878 more rows

Sheet Wateq4f
A1: # stimela_wateq4f.dat (version 3.9.0) | G1: (stimela version of wateq4f.dat)
A2: # under development by Peter de Moel (Omnisys) for Stimela platform at Delft University of Technology
A3: # based on: wateq.dat (file date 2025-09-25, in IPhreeqcCOM-3.9.0-17591-x64.msi)
A4: # Stimela is focussed on modelling for water and waste water treatment
A5: # Further info on using PHREEQC for water treatment, and PHREEQC in Excel can be found on https://ac4e.omnisys.nl/
A7: # list of modifications:
A8: # - added redox-uncoupled gases - Hdg Oxg Mtg Sg Ntg (as in phreeqc.dat)
A9: # - added redox-uncoupled (inert) elements - [N-3] [Fe+2] [Mn+2] [N+3] [C-4] [S-2] (as in stimela.dat)
A10: # - added species H3PO4 (included in DIN 38404-10 (Dezember 2012)) (as in phreeqc.dat)
A11: # - added solid Vaterite (CaCO3) (included in Standard Methods 2330 - 2016) (as in stimela.dat)
A12: # end of list of modifications
A14: # File 1 = C:\GitPrograms\phreeqc3-1\database\wateq4f.dat, 15/03/2024 15:31, 4032 lines, 106804 bytes, md5=b01313c8049bbc106fe5ce9b15afa3e2
A15: # Created 17 May 2024 14:30:45
A16: # c:\3rdParty\lsp\lsp.exe -f2 -k="asis" -ts "wateq4f.dat"
A18: # $Id$
A19: # Revised arsenic data from Archer and Nordstrom (2002)
A21: SOLUTION_MASTER_SPECIES
A23: Ag Ag+ 0 107.868 107.868
A24: Al Al+3 0 26.9815 26.9815
A25: Alkalinity CO3-2 1 50.05 50.05
A26: As H3AsO4 -1 74.9216 74.9216
A27: As(+3) H3AsO3 0 74.9216 74.9216
A28: As(+5) H3AsO4 -1 74.9216
A29: B H3BO3 0 10.81 10.81
A30: Ba Ba+2 0 137.34 137.34
A31: Br Br- 0 79.904 79.904
A32: C CO3-2 2 61.0173 12.0111
A33: C(+4) CO3-2 2 61.0173
A34: C(-4) CH4 0 16.042
A35: Ca Ca+2 0 40.08 40.08
A36: Cd Cd+2 0 112.4 112.4
A37: Cl Cl- 0 35.453 35.453
A38: Cs Cs+ 0 132.905 132.905
A39: Cu Cu+2 0 63.546 63.546
A40: Cu(+1) Cu+1 0 63.546
A41: Cu(+2) Cu+2 0 63.546
A42: E e- 1 0 0
A43: F F- 0 18.9984 18.9984
A44: Fe Fe+2 0 55.847 55.847
A45: Fe(+2) Fe+2 0 55.847
A46: Fe(+3) Fe+3 -2 55.847
A47: Fulvate Fulvate-2 0 650 650
A48: H H+ -1 1.008 1.008
A49: H(0) H2 0 1.008
A50: H(1) H+ -1 1.008
A51: Humate Humate-2 0 2000 2000
A52: I I- 0 126.9044 126.9044
A53: K K+ 0 39.102 39.102
A54: Li Li+ 0 6.939 6.939
A55: Mg Mg+2 0 24.312 24.312
A56: Mn Mn+2 0 54.938 54.938
A57: Mn(2) Mn+2 0 54.938
A58: Mn(3) Mn+3 0 54.938
A59: Mn(6) MnO4-2 0 54.938
A60: Mn(7) MnO4- 0 54.938
A61: N NO3- 0 14.0067 14.0067
A62: N(-3) NH4+ 0 14.0067
A63: N(0) N2 0 14.0067
A64: N(+3) NO2- 0 14.0067
A65: N(+5) NO3- 0 14.0067
A66: Na Na+ 0 22.9898 22.9898
A67: Ni Ni+2 0 58.71 58.71
A68: O H2O 0 16 16
A69: O(-2) H2O 0 18.016
A70: O(0) O2 0 16
A71: P PO4-3 2 30.9738 30.9738
A72: Pb Pb+2 0 207.19 207.19
A73: Rb Rb+ 0 85.47 85.47
A74: S SO4-2 0 96.0616 32.064
A75: S(-2) H2S 0 32.064
A76: S(6) SO4-2 0 96.0616
A77: Se SeO4-2 0 78.96 78.96
A78: Se(-2) HSe- 0 78.96
A79: Se(4) SeO3-2 0 78.96
A80: Se(6) SeO4-2 0 78.96
A81: Si H4SiO4 0 60.0843 28.0843
A82: Sr Sr+2 0 87.62 87.62
A83: Zn Zn+2 0 65.37 65.37
A84: U UO2+2 0 238.029 238.029
A85: U(3) U+3 0 238.029 238.029
A86: U(4) U+4 0 238.029 238.029
A87: U(5) UO2+ 0 238.029 238.029
A88: U(6) UO2+2 0 238.029 238.029
A89: # begin modification stimela_wateq4f.dat
A90: # redox-uncoupled gases (as in phreeqc.dat)
A91: Hdg Hdg 0 Hdg 2.016 # H2 gas
A92: Oxg Oxg 0 Oxg 31.998 # O2 gas
A93: #Mtg Mtg 0 Mtg 16.043 # CH4 gas replaced by [C-4]H4
A94: #Sg H2Sg 0 H2Sg 34.076 # H2S gas replaced by H2[S-2]
A95: Ntg Ntg 0 Ntg 28.014 # N2 gas
A96: # added redox-uncoupled (inert) elements: [Fe+2], [Mn+2] and [N+3]
A97: [Fe+2] [Fe+2]+2 0 Fe 55.845
A98: [Mn+2] [Mn+2]+2 0 Mn 54.845
A99: [N+3] [N+3]O2- 0 N 14.007
A100: # redox_uncoupled elements Amm (NH3), Mtg (CH4) and Sg (H2S) will confuse novice users / students
A101: # replaced with uniform notation for redox-uncoupled (inert) elements: [N-3], [C-4] and [S-2]
A102: [N-3] [N-3]H4+ 0 NH4 14.007 # Amm = [N-3]H3
A103: [C-4] [C-4]H4 0 CH4 12.007 # Mtg = [C-4]H4
A104: [S-2] H2[S-2] 0 H2S 32.06 # Sg = [S-2]
A105: # uniform notation omitted for Oxg (O2), Hdg (H2) and Ntg (N2), to keep compliance with phreeqc.dat
A106: # end modification stimela_wateq4f.dat
A108: SOLUTION_SPECIES
A110: #H+ primary master species
A111: H+ = H+
A112: log_k 0
A113: -gamma 9 0
A115: #e- primary master species
A116: e- = e-
A117: log_k 0
A119: #H2O primary master species
A120: H2O = H2O
A121: log_k 0
A123: #Ag+ primary master species
A124: Ag+ = Ag+
A125: log_k 0
A127: #Al+3 primary master species
A128: Al+3 = Al+3
A129: log_k 0
A130: -gamma 9 0
A132: #H3AsO4 primary master species
A133: H3AsO4 = H3AsO4
A134: log_k 0
A136: #H3BO3 primary master species
A137: H3BO3 = H3BO3
A138: log_k 0
A140: #Ba+2 primary master species
A141: Ba+2 = Ba+2
A142: log_k 0
A143: -gamma 5 0
A145: #Br- primary master species
A146: Br- = Br-
A147: log_k 0
A149: #CO3-2 primary master species
A150: CO3-2 = CO3-2
A151: log_k 0
A152: -gamma 5.4 0
A154: #Ca+2 primary master species
A155: Ca+2 = Ca+2
A156: log_k 0
A157: -gamma 5 0.165
A159: #Cd+2 primary master species
A160: Cd+2 = Cd+2
A161: log_k 0
A163: #Cl- primary master species
A164: Cl- = Cl-
A165: log_k 0
A166: -gamma 3.5 0.015
A168: #Cs+ primary master species
A169: Cs+ = Cs+
A170: log_k 0
A172: #Cu+2 primary master species
A173: Cu+2 = Cu+2
A174: log_k 0
A175: -gamma 6 0
A177: #F- primary master species
A178: F- = F-
A179: log_k 0
A180: -gamma 3.5 0
A182: #Fe+2 primary master species
A183: Fe+2 = Fe+2
A184: log_k 0
A185: -gamma 6 0
A187: #Fulvate-2 primary master species
A188: Fulvate-2 = Fulvate-2
A189: log_k 0
A191: #Humate-2 primary master species
A192: Humate-2 = Humate-2
A193: log_k 0
A195: #I- primary master species
A196: I- = I-
A197: log_k 0
A199: #K+ primary master species
A200: K+ = K+
A201: log_k 0
A202: -gamma 3.5 0.015
A204: #Li+ primary master species
A205: Li+ = Li+
A206: log_k 0
A207: -gamma 6 0
A209: #Mg+2 primary master species
A210: Mg+2 = Mg+2
A211: log_k 0
A212: -gamma 5.5 0.2
A214: #Mn+2 primary master species
A215: Mn+2 = Mn+2
A216: log_k 0
A217: -gamma 6 0
A219: #NO3- primary master species
A220: NO3- = NO3-
A221: log_k 0
A222: -gamma 3 0
A224: #Na+ primary master species
A225: Na+ = Na+
A226: log_k 0
A227: -gamma 4 0.075
A229: #Ni+2 primary master species
A230: Ni+2 = Ni+2
A231: log_k 0
A233: #PO4-3 primary master species
A234: PO4-3 = PO4-3
... 3194 more rows

Sheet Minteqv4
A1: # stimela_minteqv4.dat (version 3.9.0)
A2: # under development by Peter de Moel (Omnisys) for Stimela platform at Delft University of Technology
A3: # based on: minteq.v4.dat (file date 2025-09-05, in IPhreeqcCOM-3.9.0-17591-x64.msi)
A4: # | B4: from: https://github.com/phreeqc-dev/iphreeqccom/releases/tag/v3.9.0
A5: # Stimela is focussed on modelling for water and waste water treatment
A6: # Further info on using PHREEQC for water treatment, and PHREEQC in Excel can be found on https://ac4e.omnisys.nl/
A8: # minteq does not includes Henry constants ( reaction: X(g) = X ), K-gasses direct from dissolved ions
A9: # minteq does not includes CO2 but H2CO3 (= CO2 + H2O)
A10: # minteq defines Alkalinity as HCO3
A11: # minteq database for Stimela platform to be developed or
A12: # specific minteq-items might be included in Input with stimela.dat
A14: # File 1 = C:\GitPrograms\phreeqc3-1\database\minteq.v4.dat, 15/03/2024 15:27, 13208 lines, 399299 bytes, md5=fa307060a8f8affd6f41cb15d2225ff6
A15: # Created 17 May 2024 14:30:41
A16: # c:\3rdParty\lsp\lsp.exe -f2 -k="asis" -ts "minteq.v4.dat"
A18: # $Id: minteq.v4.dat 11091 2016-04-21 15:20:05Z dlpark $
A19: SOLUTION_MASTER_SPECIES
A20: Alkalinity CO3-2 2 HCO3 61.0173
A21: E e- 1 0 0
A22: O H2O 0 O 16
A23: O(-2) H2O 0 O
A24: O(0) O2 0 O
A25: Ag Ag+ 0 Ag 107.868
A26: Al Al+3 0 Al 26.9815
A27: As H3AsO4 -1 As 74.9216
A28: As(3) H3AsO3 0 As
A29: As(5) H3AsO4 -1 As
A30: B H3BO3 0 B 10.81
A31: Ba Ba+2 0 Ba 137.33
A32: Be Be+2 0 Be 9.0122
A33: Br Br- 0 Br 79.904
A34: C CO3-2 2 CO3 12.0111
A35: C(4) CO3-2 2 CO3 12.0111
A36: Cyanide Cyanide- 1 Cyanide 26.0177
A37: Dom_a Dom_a 0 C 12.0111
A38: Dom_b Dom_b 0 C 12.0111
A39: Dom_c Dom_c 0 C 12.0111
A40: Ca Ca+2 0 Ca 40.078
A41: Cd Cd+2 0 Cd 112.41
A42: Cl Cl- 0 Cl 35.453
A43: Co Co+3 -1 Co 58.9332
A44: Co(2) Co+2 0 Co
A45: Co(3) Co+3 -1 Co
A46: Cr CrO4-2 1 Cr 51.996
A47: Cr(2) Cr+2 0 Cr
A48: Cr(3) Cr(OH)2+ 0 Cr
A49: Cr(6) CrO4-2 1 Cr
A50: Cu Cu+2 0 Cu 63.546
A51: Cu(1) Cu+ 0 Cu
A52: Cu(2) Cu+2 0 Cu
A53: F F- 0 F 18.9984
A54: Fe Fe+3 -2 Fe 55.847
A55: Fe(2) Fe+2 0 Fe
A56: Fe(3) Fe+3 -2 Fe
A57: H H+ -1 H 1.0079
A58: H(0) H2 0 H
A59: H(1) H+ -1 H
A60: Hg Hg(OH)2 0 Hg 200.59
A61: Hg(0) Hg 0 Hg
A62: Hg(1) Hg2+2 0 Hg
A63: Hg(2) Hg(OH)2 0 Hg
A64: I I- 0 I 126.904
A65: K K+ 0 K 39.0983
A66: Li Li+ 0 Li 6.941
A67: Mg Mg+2 0 Mg 24.305
A68: Mn Mn+3 0 Mn 54.938
A69: Mn(2) Mn+2 0 Mn
A70: Mn(3) Mn+3 0 Mn
A71: Mn(6) MnO4-2 0 Mn
A72: Mn(7) MnO4- 0 Mn
A73: Mo MoO4-2 0 Mo 95.94
A74: N NO3- 0 N 14.0067
A75: N(-3) NH4+ 0 N
A76: N(3) NO2- 0 N
A77: N(5) NO3- 0 N
A78: Na Na+ 0 Na 22.9898
A79: Ni Ni+2 0 Ni 58.69
A80: P PO4-3 2 P 30.9738
A81: Pb Pb+2 0 Pb 207.2
A82: S SO4-2 0 SO4 32.066
A83: S(-2) HS- 1 S
A84: #S(0) S 0.0 S
A85: S(6) SO4-2 0 SO4
A86: Sb Sb(OH)6- 0 Sb 121.75
A87: Sb(3) Sb(OH)3 0 Sb
A88: Sb(5) Sb(OH)6- 0 Sb
A89: Se SeO4-2 0 Se 78.96
A90: Se(-2) HSe- 0 Se
A91: Se(4) HSeO3- 0 Se
A92: Se(6) SeO4-2 0 Se
A93: Si H4SiO4 0 SiO2 28.0843
A94: Sn Sn(OH)6-2 0 Sn 118.71
A95: Sn(2) Sn(OH)2 0 Sn
A96: Sn(4) Sn(OH)6-2 0 Sn
A97: Sr Sr+2 0 Sr 87.62
A98: Tl Tl(OH)3 0 Tl 204.383
A99: Tl(1) Tl+ 0 Tl
A100: Tl(3) Tl(OH)3 0 Tl
A101: U UO2+2 0 U 238.029
A102: U(3) U+3 0 U
A103: U(4) U+4 -4 U
A104: U(5) UO2+ 0 U
A105: U(6) UO2+2 0 U
A106: V VO2+ -2 V 50.94
A107: V(2) V+2 0 V
A108: V(3) V+3 -3 V
A109: V(4) VO+2 0 V
A110: V(5) VO2+ -2 V
A111: Zn Zn+2 0 Zn 65.39
A112: Benzoate Benzoate- 0 121.116 121.116
A113: Phenylacetate Phenylacetate- 0 135.142 135.142
A114: Isophthalate Isophthalate-2 0 164.117 164.117
A115: Diethylamine Diethylamine 1 73.138 73.138
A116: Butylamine Butylamine 1 73.138 73.138
A117: Methylamine Methylamine 1 31.057 31.057
A118: Dimethylamine Dimethylamine 1 45.084 45.084
A119: Hexylamine Hexylamine 1 101.192 101.192
A120: Ethylenediamine Ethylenediamine 2 60.099 60.099
A121: Propylamine Propylamine 1 59.111 59.111
A122: Isopropylamine Isopropylamine 1 59.111 59.111
A123: Trimethylamine Trimethylamine 1 59.111 59.111
A124: Citrate Citrate-3 2 189.102 189.102
A125: Nta Nta-3 1 188.117 188.117
A126: Edta Edta-4 2 288.214 288.214
A127: Propionate Propionate- 1 73.072 73.072
A128: Butyrate Butyrate- 1 87.098 87.098
A129: Isobutyrate Isobutyrate- 1 87.098 87.098
A130: Two_picoline Two_picoline 1 93.128 93.128
A131: Three_picoline Three_picoline 1 93.128 93.128
A132: Four_picoline Four_picoline 1 93.128 93.128
A133: Formate Formate- 0 45.018 45.018
A134: Isovalerate Isovalerate- 1 101.125 101.125
A135: Valerate Valerate- 1 101.125 101.125
A136: Acetate Acetate- 1 59.045 59.045
A137: Tartarate Tartarate-2 0 148.072 148.072
A138: Glycine Glycine- 1 74.059 74.059
A139: Salicylate Salicylate-2 1 136.107 136.107
A140: Glutamate Glutamate-2 1 145.115 145.115
A141: Phthalate Phthalate-2 1 164.117 164.117
A142: SOLUTION_SPECIES
A143: e- = e-
A144: log_k 0
A145: H2O = H2O
A146: log_k 0
A147: Ag+ = Ag+
A148: log_k 0
A149: Al+3 = Al+3
A150: log_k 0
A151: H3AsO4 = H3AsO4
A152: log_k 0
A153: H3BO3 = H3BO3
A154: log_k 0
A155: Ba+2 = Ba+2
A156: log_k 0
A157: Be+2 = Be+2
A158: log_k 0
A159: Br- = Br-
A160: log_k 0
A161: CO3-2 = CO3-2
A162: log_k 0
A163: Cyanide- = Cyanide-
A164: log_k 0
A165: Dom_a = Dom_a
A166: log_k 0
A167: Dom_b = Dom_b
A168: log_k 0
A169: Dom_c = Dom_c
A170: log_k 0
A171: Ca+2 = Ca+2
A172: log_k 0
A173: Cd+2 = Cd+2
A174: log_k 0
A175: Cl- = Cl-
A176: log_k 0
A177: Co+3 = Co+3
A178: log_k 0
A179: CrO4-2 = CrO4-2
A180: log_k 0
A181: Cu+2 = Cu+2
A182: log_k 0
A183: F- = F-
A184: log_k 0
A185: Fe+3 = Fe+3
A186: log_k 0
A187: H+ = H+
A188: log_k 0
A189: Hg(OH)2 = Hg(OH)2
A190: log_k 0
A191: I- = I-
A192: log_k 0
A193: K+ = K+
A194: log_k 0
A195: Li+ = Li+
A196: log_k 0
A197: Mg+2 = Mg+2
A198: log_k 0
A199: Mn+3 = Mn+3
A200: log_k 0
A201: MoO4-2 = MoO4-2
A202: log_k 0
A203: NO3- = NO3-
... 13014 more rows
